Workbook

Sheet KITÖLTÉSI ÚTMUTATÓ
A1: ÁLTALÁNOS KITÖLTÉSI INFORMÁCIÓK
A2: Az elszámolási összesítőben olyan, a megvalósítási időszakban felmerült gazdasági események költségeit lehet elszámolni, amelyek pénzügyi teljesítése (igazolt kifizetése) legkésőbb az elszámolási időszak végét követő 30 napig megtörtént.
A3: Előleg számla minden esetben kizárólag rész/végszámlával együtt nyújtható be. Amennyiben adott mérföldkő időszakában az előleghez kapcsolódó rész/végszámla nem került kiállításra és kifizetésre, az előleg számla is csak a következő mérföldkőben számolható el.
A4: Abban az esetben, ha az összesítőben szereplő költségek nem kizárólag a projekt által támogatott tevékenységgel kapcsolatban merültek fel, az elszámolni kívánt költségeket arányosan csökkenteni kell.
A5: Az excel táblázatban jogcímként kitöltött fülek összesen összege és a könyvvizsgálói nyilatkozat fülre átemelt összegek közötti egyezőséget ellenőrizni szükséges.
A6: Az excel táblázatban szereplő költségeknek összhangban kell lennie az EPTK felületen rögzített elszámolandó költségekkel.
A7: Konzorcium esetén valamennyi konzorciumi tagnak külön-külön pénzügyi beszámoló formanyomtatványt szükséges kitölteni.
A8: ÁHT-n belüli kedvezményezettek esetén nem szükséges a könyvvizsgáló általi hitelesítés, ott elegendő a gazdasági vezető (kancellár) által aláírt könyvvizsgálói nyilatkozat. ÁHT-n kívüli kedvezményezettek esetén a benyújtott elszámolás könyvvizsgáló általi hitelesítése kötelező, azonban a hiánypótlás során már nem szükséges újra hitelesíttetni az elszámolást, ott elegendő a cég részéről (gazdasági vezető és/vagy ügyvezető által) aláírt formanyomtatvány.
A9: Amennyiben az EPTK felületen rögzített bizonylatok, valamint a pénzügyi beszámoló formanyomtatványon szereplő összegek megbontása (támogatás, saját forrás) között kerekítés miatti eltérés (a rendszer 6 tizedes jegy kerekítéssel dolgozik) adódik, minden esetben az EPTK felületen szereplő értékek az irányadóak.
A11: SZEMÉLYI JELLEGŰ KÖLTSÉGEK ÉS JÁRULÉKOK TÁBLÁZAT KITÖLTÉSÉHEZ
A12: Projektben résztvevő dolgozó neve | B12: A projektben résztvevő munkavállalók, megbízott személyek neve egyesével feltüntetve.
A13: Projektben résztvevő dolgozó státusza | B13: Legördülő menüből szükséges választani.
A14: Elszámolási időszak kezdete és vége | B14: Azt az időszakot szükséges feltüntetni, amelyre a munkabért kifizeti (pl. 5. havi járandóság: 5. hó, vagy 2018.05.01-2018.05.31), amennyiben megbízási szerződésről van szó, ott annak teljesítésének idejét kell feltüntetni.
A15: Az adott hónapban a projektre elszámolt munka-órák száma* | B15: Az adott időszakban munkaidő kimutatásokkal alátámasztottan a projektre elszámolt munkaórák száma. A teljes havi ledolgozható munkaóra valamint a projektre elszámolt munkaóra aránya mutatja meg, hogy a projektben részt vevő munkavállaló személyi költsége hány %-ban terhelhető a támogatott projektre. * Amennyiben a pályázati felhívás/útmutató megengedi a szabadság, betegszabadság, ünnepnap elszámolását a projekt terhére, úgy szíveskedjenek a feltüntetett munkaórákba beleszámítani ezek idejét is!
A16: Pénzügyi teljesítés időpontja | B16: Az adott időszakra vonatkozó nettó bér kifizetésének dátumát szükséges feltüntetni.
A17: Állandó dolgozó (Á), vagy megbízásos dolgozó (M) (legördülő menü) | B17: Legördülő menüből szükséges választani.
A18: Projektre elszámolt bruttó bér (Ft) | B18: A munkavállalónak adott időszakban bérszámfejtett, projekt keretében elszámolni kívánt bruttó bért (illetményt) vagy a megbízási szerződésben szereplő bruttó összeget.
A19: Projektre elszámolt egyéb juttatások (Ft) (pld. napidíj, stb.) | B19: A munkavállalónak biztosított, projekt keretében elszámolni kívánt egyéb személyi jellegű juttatások összegét. Pl.: hideg/meleg étkezési utalvány, ruha pénz, munkába járás stb. (hatályos közszolgálati szabályzat, belső szabályzat alapján minden munkavállaló részére biztosított egyéb személyi jellegű juttatások).
A20: Projektre elszámolt bruttó bér és juttatások összesen (Ft) | B20: Megegyezik az előző oszlopok összegével, azaz a bruttó bér és egyéb juttatások összegével.
A21: Projektre elszámolt bruttó bér járuléka (Ft) | B21: Adja meg a projektben elszámolni kívánt bruttó bérre / megbízási díjra eső járulékok összegét a hatályos jogszabályoknak megfelelő mértékben.
A22: Támogatás típusa | B22: Legördülő menüből szükséges választani. A jóváhagyott támogatási tevékenységek az EPTK felületen a Szerződés/Hatályos támogatási szerződés megtekintése/Pénzügyi adatok/Költségek űralapon tekinthető meg.
A23: Tám. int. | B23: Az egyes tevékenységekhez kapcsolódó jóváhagyott támogatási intenzitás az EPTK felületen a Szerződés/Hatályos támogatási szerződés megtekintése/Pénzügyi adatok/Költségek űralapon tekinthető meg.
A25: ANYAGKÖLTSÉGE, IGÉNYBE VETT SZOLGÁLTATÁS, EGYÉB SZOLGÁLTATÁS, IMMAT.JAVAK, MŰSZAKI/EGYÉB BERENDEZÉSEK BESZERZÉSE, BERUHÁZÁS, FELÚJÍTÁS TÁBLÁZATOK KITÖLTÉSÉHEZ
A26: Sorszám | B26: Folyamatos sorszámozás.
A27: Számviteli bizonylat kiállítójának neve | B27: Az elszámoló bizonylaton szereplő szállító neve.
A28: Adószáma | B28: Az elszámoló bizonylaton szereplő szállító adószáma.
A29: Számviteli bizonylat sorszáma | B29: Az elszámoló bizonylat sorszáma. Egy sorba csak egy elszámoló bizonylatot vezessen fel.
A30: Kiállítás kelte | B30: Az elszámoló bizonylaton szereplő kiállítás dátuma.
A31: Teljesítés dátuma | B31: Az elszámoló bizonylaton szereplő teljesítés dátuma. Amennyiben ilyen dátum nem szerepel az elszámoló bizonylaton, kérjük, hogy az elszámoló bizonylat keltét tüntesse fel ebben az oszlopban.
A32: Pénzügyi teljesítés időpontja | B32: Az elszámoló bizonylat pénzügyi teljesítésének dátuma.
A33: Amortizációnál az elszámolt időszak kezdete | B33: Az eszköz/jószág aktiválásának kezdete. Amennyiben ez korábbi, minta az adott mérföldkő kezdete, akkor a mérföldkő kezdetének dátuma.
A34: Amortizációnál az elszámolt időszak vége | B34: Azaz időpont, amikor az eszköz/jószág értéke kifut 0-ára. Amennyiben ez későbbi, mint az adott mérföldkő vége, akkor a mérföldkő végének dátuma.
A35: amortizációs kulcs % | B35: A Számviteli törvény alapján meghatározott amortizációs kulcs.
A36: Gazdasági esemény rövid leírása | B36: Az elszámoló bizonylaton szereplő termék vagy szolgáltatás megnevezése.
A37: Összeg (bruttó, áfa, nettó) | B37: Az elszámoló bizonylaton szereplő teljes összeg bruttó, áfa, nettó bontásban.
A38: Projekt terhére elszámolt költségek (Ft) (támogatás, saját forrás, egyéb, összesen) | B38: Az elszámoló bizonylat teljes bruttó összegéből a projekt terhére elszámolni kívánt összeg támogatás, saját forrás, egyéb megbontásban.
A39: Támogatás típusa | B39: Legördülő menüből szükséges választani. A jóváhagyott támogatási tevékenységek az EPTK felületen a Szerződés/Hatályos támogatási szerződés megtekintése/Pénzügyi adatok/Költségek űralapon tekinthető meg.
A40: Tám. int. | B40: Az egyes tevékenységekhez kapcsolódó jóváhagyott támogatási intenzitás az EPTK felületen a Szerződés/Hatályos támogatási szerződés megtekintése/Pénzügyi adatok/Költségek űralapon tekinthető meg.

Sheet Alátámasztó dokumentumok
A1: PÉNZÜGYI BESZÁMOLÓ - ALÁTÁMASZTÓ DOKUMENTUMOK LISTÁJA
A4: Pénzügyi beszámoló beadáskor minden esetben kötelezően benyújtandó dokumentumok
A5: KNY | B5: Könyvvizsgálói nyilatkozat | C5: Cégvezető és könyvvizsgáló által cégszerűen aláírt eredeti nyilatkozat. ÁHT-n belüli kedvezményezettek esetén nem szükséges a könyvvizsgáló általi hitelesítés, ott elegendő az intézmény gazdálkodásáért felelős (pl. kancellár, gazdasági-,pénzügyi vezető, gazdasági igazgató, stb.) által aláírt könyvvizsgálói nyilatkozat. ÁHT-n kívüli kedvezményezettek esetén a benyújtott elszámolás könyvvizsgáló általi hitelesítése kötelező, azonban a hiánypótlás során már nem szükséges újra hitelesíttetni az elszámolást, ott elegendő a cég részéről (gazdasági vezető és/vagy ügyvezető által) aláírt formanyomtatvány.
A6: 11, 13,14, 16, 51-56 | B6: Pénzügyi beszámoló formanyomtatvány | C6: Kitöltött excel táblázat valamennyi szignózott oldala (az üres költségösszesítő oldalak is) eredeti példányban postai úton, valamint .excel és .pdf formátumban EPTK felületen a benyújtott beszámoló mellékleteként csatolva.
A7: LNY | B7: Lemondó nyilatkozat (*) | C7: Kedvezményezett által cégszerűen aláírt eredeti példányát csak a projekt utolsó elszámolásakor kell beadni (postai úton és szkennelve EPTK felületen a beszámoló mellékleteként), amennyiben a megítélt támogatás nem került teljes mértékben felhasználásra
A8: Egyéb | B8: Szakmai beszámoló formanyomtatvány | C8: A pénzügyi beszámoló csak szakmai beszámolóval együtt nyújtható be. A kitöltött szakmai beszámoló formanyomtatványt az EPTK felületen rögzített szakmai beszámoló mellékleteként pdf formátumban szükséges csatolni.
A9: Az alábbi költség típusokhoz tartozó bizonylat elszámolásakor kötelezően benyújtandó dokumentumok
A10: 52-53 | B10: Igénybevett vagy egyéb szolgáltatás | C10: A szolgáltatókkal megkötött szerződések, azok mellékletei, a szolgáltatatás eredményét alátámasztó dokumentumok EPTK felületen a szakmai beszámoló mellékleteként csatolva.
A11: 11, 13-14, | B11: Eszközök, immateriális javak, műszaki berendezések, gépek, járművek | C11: Árajánlatok, megrendelők/szerződések, eszközkarton, üzembe helyezési jegyzőkönyv, fotódokumentáció (ahol releváns, például eszközök esetében) EPTK felületen a szakmai beszámoló mellékleteként csatolva.
A12: 16 | B12: Beruházások, felújítások | C12: Beruházásra, felújításra vonatkozó tervek, kivitelezésre vonatkozó költségvetés, bonyolítói vagy műszaki ellenőri teljesítési igazolás, rész vagy végleges átadás–átvételi jegyzőkönyv, használatba vételi engedély (amennyiben már rendelkeznek vele), fotódokumentáció EPTK felületen a szakmai beszámoló mellékleteként csatolva.
A15: A 2017. január 01-je után hatályba lépett támogatási szerződések esetén a beszámoló ellenőrzése mintavételes ellenőrzés útján történik, az ÁVR 100§-a alapján . Az elszámolás beérkezésekor, az excel táblázat első körös ellenőrzése után az ügyintéző mintavételes ellenőrzés keretében kéri be a kiválasztott tételekhez kapcsolódóan költség típusonként az alábbi alátámasztó dokumentumokat.
A18: Mintavétel során általánosságban bekérhető dokumentumok listája költség típusonként
A19: Költség típus | C19: Alátámasztó dokumentum
A20: 54-56 | B20: Személyi juttatások és járulékai | C20: Munkaszerződés/megbízási szerződés/kinevezési okirat , bérkarton/bérjegyzék, munkaköri leírás, (végzettséget igazoló dokumentáció, önéletrajz amennyiben a Pályázati útmutató előírja) kifizetési bizonylat (bér és járulék), teljesítési igazolás (megbízási szerződés esetén). Amennyiben az előző mérföldkőnél már beküldésre került a mintavételezett dokumentum csak a módosításokat kérjük benyújtani.
A21: 51 | B21: Anyagköltség | C21: Árajánlat, szerződés, eredetivel megegyező hiteles számlamásolat, kiegyenlítést alátámasztó dokumentum (bankkivonat, pénztárbizonylat vagy időszaki pénztárjelentés).
A22: 52-53 | B22: Szolgáltatások | C22: Árajánlat, szerződés, eredetivel megegyező hiteles számlamásolat, teljesítés igazolás, kiegyenlítést alátámasztó dokumentum (bankkivonat, pénztárbizonylat vagy időszaki pénztárjelentés), 200.000+ÁFA felett kötelező a szerződés és teljesítés igazolás benyújtása is.
A23: 52 | B23: Rezsi költségek | C23: Eredetivel megegyező hiteles számlamásolat, főkönyvi kivonat.
A24: 11 | B24: Immateriális javak beszerzése | C24: Árajánlat, szerződés, eredetivel megegyező hiteles számlamásolat, eszköz karton, ütembehelyezési okmány, szállító levél, kiegyenlítést alátámasztó dokumentum (bankkivonat, pénztárbizonylat vagy időszaki pénztárjelentés).
A25: 13-14 | B25: Eszközbeszerzések | C25: Árajánlat, szerződés, eredetivel megegyező hiteles számlamásolat, eszköz karton, üzembe helyezési okmány, szállítólevél, kiegyenlítést alátámasztó dokumentum (bankkivonat, pénztárbizonylat vagy időszaki pénztárjelentés).
A26: 16 | B26: Beruházás, felújítás | C26: Árajánlat, szerződés, eredetivel megegyező hiteles számlamásolat, kiegyenlítést alátámasztó dokumentum (bankkivonat, pénztárbizonylat vagy időszaki pénztárjelentés).

Sheet (KNY)könyvvizsgálói nyilatkozat
A1: Egy példányban kitöltve, eredeti aláírással és bélyegzéssel ellátva kell benyújtani. | E1: Formanyomtatvány pénzügyi elszámoláshoz
A2: A táblázat adatai a többi munkalapról automatikusan bemásolódnak!
A4: Kedvezményezett neve: | B4: MINTA Kft.
A5: Szerződésszám: | B5: 2017-1.2.1-NKP-0000-00000
A6: Az elszámolással érintett időszak kezdete és vége: | B6: 2017.11.01.-2018.10.31.
C10: N Y I L A T K O Z A T
C11: (a kedvezményezett tölti ki)
A14: Alulírott Minta János, mint a MINTA Kft. cégjegyzésre jogosult vezetője teljes jogi felelősséggel nyilatkozom, hogy a fenti támogatási szerződés alapján a szakmai és pénzügyi beszámolóra vonatkozó előírások szerint a támogatás és a saját/egyéb forrás felhasználásáról, valamint a kamatok tekintetében teljes körű, elkülönített nyilvántartást vezetek. Az elszámolni kívánt költségek az adott projektre vonatkozó tárgyi és időbeli elszámolhatósági szabályokkal összhangban, számlákkal vagy egyéb a költséget igazoló számviteli bizonylatokkal alátámasztva, teljesítésigazolás mellett kerültek felhasználásra és azokra további EU-s vagy egyéb hazai támogatás nem került elszámolásra. A szerződés melléklete alapján, a számlaösszesítőkben feltüntetett részfeladatok teljesítése során keletkezett ráfordítások összege 20 161 144 Ft azaz Húszmillió-egyszázhatvanegyezer-egyszáznegyvennégy forint, az alábbi forrásonként és jogcímenként kerülnek elszámolásra. A kimutatott ráfordítások a szerződésben vállalt célok megvalósítása érdekében merültek fel.
A17: Költségtípusok | B17: Támogatás (Ft) | C17: Saját forrás (Ft) | D17: Egyéb forrás (Ft) | E17: Összesen (Ft)
A18: 54. Személyi juttatások | B18: =+'(54-56) személyi+járulék'!N45 -> 14358000 | C18: =+'(54-56) személyi+járulék'!O45 -> 1502000 | D18: =+'(54-56) személyi+járulék'!P45 -> 0 | E18: =SUM(B18:D18) -> 15860000
A19: 56. Munkaadókat terhelő járulékok | B19: =+'(54-56) személyi+járulék'!Q45 -> 2782650 | C19: =+'(54-56) személyi+járulék'!R45 -> 288600 | D19: =+'(54-56) személyi+járulék'!S45 -> 0 | E19: 3071250
A20: 51. Anyagköltség | B20: =+'(51) anyagköltség '!L26 -> 458598 | C20: =+'(51) anyagköltség '!M26 -> 0 | D20: =+'(51) anyagköltség '!N26 -> 0 | E20: 458598
A21: 52. Igénybe vett szolgáltatások | B21: =+'(52) igénybe vett szolg'!L28 -> 1635000 | C21: =+'(52) igénybe vett szolg'!M28 -> 0 | D21: =+'(52) igénybe vett szolg'!N28 -> 0 | E21: 1635000
A22: 53. Egyéb szolgáltatások | B22: =+'(53) egyéb szolgáltatások'!L25 -> 0 | C22: =+'(53) egyéb szolgáltatások'!M25 -> 0 | D22: =+'(53) egyéb szolgáltatások'!N25 -> 0 | E22: 0
A23: 11. Immateriális javak | B23: =+'(11) immat jav beszerz'!O27 -> 223799 | C23: =+'(11) immat jav beszerz'!P27 -> 176220 | D23: =+'(11) immat jav beszerz'!Q27 -> 47579 | E23: 447598
A24: 13. Műszaki gépek berendezések, járművek | B24: =+'(13) műszaki berendezések'!O26 -> 37894 | C24: =+'(13) műszaki berendezések'!P26 -> 29837 | D24: =+'(13) műszaki berendezések'!Q26 -> 3222 | E24: 70953
A25: 14. Egyéb berendezések, felszerelések, járművek | B25: =+'(14) egyéb berendezések'!O27 -> 0 | C25: =+'(14) egyéb berendezések'!P27 -> 0 | D25: =+'(14) egyéb berendezések'!Q27 -> 0 | E25: 0
A26: 16. Beruházások, felújítások | B26: =+'(16) beruházás,felújítás'!O27 -> 0 | C26: =+'(16) beruházás,felújítás'!P27 -> 0 | D26: =+'(16) beruházás,felújítás'!Q27 -> 0 | E26: 0
A27: Összesen: | B27: =SUM(B18:B26) -> 19495941 | C27: =SUM(C18:C26) -> 1996657 | D27: 50801 | E27: =SUM(E18:E26) -> 21543399
A29: Budapest, 2019. év 04. hó 12. nap.
D32: …………………………
D34: PH.
D35: Minta János ügyvezető igazgató
A36: Alulírott Könyvvizsgáló Katalin, mint a MINTA Kft társaság/szervezet (megbízott) könyvvizsgálója, és Gazdasági Gabriella, mint a MINTA Kft társaság/szervezet gazdasági vezetője igazolom, hogy a fenti adatok a MINTA Kft. elkülönített számviteli nyilvántartásával megegyeznek.
A38: Budapest, 2019. év 04. hó 12. nap.
B41: ……………………… | E41: …………………………
B42: gazdasági vezető aláírása* | E42: könyvvizsgáló aláírása*
B43: Gazdasági Gabriella | E43: Könyvvizsgálói Kamaránál nyilvántartott bejegyzési szám: …………………….
E44: Könyvvizsgáló Katalin
A46: * Az aláírók nevét nyomtatott betűkkel is kérjük kitölteni.

Sheet (54-56) személyi+járulék
A1: Kedvezményezett neve: | G1: =+'(KNY)könyvvizsgálói nyilatkozat'!$B4 -> MINTA Kft.
A2: Szerződésszám: | G2: =+'(KNY)könyvvizsgálói nyilatkozat'!$B5 -> 2017-1.2.1-NKP-0000-00000
A3: Mérföldkő dátuma:: | G3: =+'(KNY)könyvvizsgálói nyilatkozat'!$B6 -> 2017.11.01.-2018.10.31.
A5: 54 -56 SZEMÉLYI JUTTATÁSOK ÉS JÁRULÉKAI
A7: Projektben résztvevő dolgozók | C7: Az elszámolt időszak | E7: Az adott hónapban a projektre elszámolt munka-órák száma* | F7: Pénzügyi teljesítés időpontja | G7: Állandó dolgozó (Á), vagy megbí-zásos dolgozó (M) (legördülő menű) | H7: Projektre elszámolt bruttó bér (Ft) | K7: Projektre elszámolt egyéb juttatások (Ft) (pld. napidíj, stb.) | N7: Projektre elszámolt bruttó bér és juttatások összesen (Ft) | Q7: Projektre elszámolt bruttó bér járuléka (Ft) | T7: Támogatás típusa | U7: Tám. int.
A8: neve | B8: státusza (legördülő menű) | C8: kezdete (dátum) | D8: vége (dátum) | H8: Támogatás | I8: Saját forrás | J8: Egyéb forrás | K8: Támogatás | L8: Saját forrás | M8: Egyéb forrás | N8: Támogatás | O8: Saját forrás | P8: Egyéb forrás | Q8: Támogatás | R8: Saját forrás | S8: Egyéb forrás
A9: Minta János | B9: K+F munkatárs | C9: 2017-12-01 | D9: 2017-12-31 | E9: 72 | F9: 2018-01-03 | G9: Á | H9: 650000 | I9: 0 | J9: 0 | K9: 8000 | L9: 2000 | M9: 0 | N9: =H9+K9 -> 658000 | O9: =I9+L9 -> 2000 | P9: =J9+M9 -> 0 | Q9: 126750 | R9: 0 | S9: 0 | T9: K+F/Alap. | U9: 1
A10: Minta János | B10: K+F munkatárs | C10: 2018-01-01 | D10: 2018-01-31 | E10: 65 | F10: 2018-02-03 | G10: Á | H10: 650000 | I10: 0 | J10: 0 | K10: 8000 | L10: 2000 | M10: 0 | N10: =H10+K10 -> 658000 | O10: =I10+L10 -> 2000 | P10: 0 | Q10: 126750 | R10: 0 | S10: 0 | T10: K+F/Alap. | U10: 1
A11: Minta János | B11: K+F munkatárs | C11: 2018-02-01 | D11: 2018-02-28 | E11: 72 | F11: 2018-03-03 | G11: Á | H11: 650000 | I11: 0 | J11: 0 | K11: 8000 | L11: 2000 | M11: 0 | N11: 658000 | O11: 2000 | P11: 0 | Q11: 126750 | R11: 0 | S11: 0 | T11: K+F/Alap. | U11: 1
A12: Minta János | B12: K+F munkatárs | C12: 2018-03-01 | D12: 2018-03-31 | E12: 68 | F12: 2018-04-03 | G12: Á | H12: 650000 | I12: 0 | J12: 0 | K12: 8000 | L12: 2000 | M12: 0 | N12: 658000 | O12: 2000 | P12: 0 | Q12: 126750 | R12: 0 | S12: 0 | T12: K+F/Alap. | U12: 1
A13: Minta János | B13: K+F munkatárs | C13: 2018-04-01 | D13: 2018-04-30 | E13: 64 | F13: 2018-05-03 | G13: Á | H13: 650000 | I13: 0 | J13: 0 | K13: 0 | L13: 0 | M13: 0 | N13: 650000 | O13: 0 | P13: 0 | Q13: 126750 | R13: 0 | S13: 0 | T13: K+F/Alap. | U13: 1
A14: Minta János | B14: K+F munkatárs | C14: 2018-05-01 | D14: 2018-05-31 | E14: 80 | F14: 2018-06-03 | G14: Á | H14: 650000 | I14: 0 | J14: 0 | K14: 0 | L14: 0 | M14: 0 | N14: 650000 | O14: 0 | P14: 0 | Q14: 126750 | R14: 0 | S14: 0 | T14: K+F/Alap. | U14: 1
A15: Minta János | B15: K+F munkatárs | C15: 2018-06-01 | D15: 2018-06-30 | E15: 80 | F15: 2018-07-03 | G15: Á | H15: 650000 | I15: 0 | J15: 0 | K15: 0 | L15: 0 | M15: 0 | N15: 650000 | O15: 0 | P15: 0 | Q15: 126750 | R15: 0 | S15: 0 | T15: K+F/Alap. | U15: 1
A16: Minta János | B16: K+F munkatárs | C16: 2018-07-01 | D16: 2018-07-31 | E16: 80 | F16: 2018-08-03 | G16: Á | H16: 650000 | I16: 0 | J16: 0 | K16: 0 | L16: 0 | M16: 0 | N16: 650000 | O16: 0 | P16: 0 | Q16: 126750 | R16: 0 | S16: 0 | T16: K+F/Alap. | U16: 1
A17: Minta János | B17: K+F munkatárs | C17: 2018-08-01 | D17: 2018-08-31 | E17: 80 | F17: 2018-09-03 | G17: Á | H17: 650000 | I17: 0 | J17: 0 | K17: 0 | L17: 0 | M17: 0 | N17: 650000 | O17: 0 | P17: 0 | Q17: 126750 | R17: 0 | S17: 0 | T17: K+F/Alap. | U17: 1
A18: Minta János | B18: K+F munkatárs | C18: 2018-09-01 | D18: 2018-09-30 | E18: 72 | F18: 2018-10-03 | G18: Á | H18: 650000 | I18: 0 | J18: 0 | K18: 0 | L18: 0 | M18: 0 | N18: 650000 | O18: 0 | P18: 0 | Q18: 126750 | R18: 0 | S18: 0 | T18: K+F/Alap. | U18: 1
A19: Minta János | B19: K+F munkatárs | C19: 2018-10-01 | D19: 2018-10-31 | E19: 80 | F19: 2018-11-03 | G19: Á | H19: 650000 | I19: 0 | J19: 0 | K19: 0 | L19: 0 | M19: 0 | N19: 650000 | O19: 0 | P19: 0 | Q19: 126750 | R19: 0 | S19: 0 | T19: K+F/Alap. | U19: 1
A20: Gipsz Jakab | B20: Techn., segédszem. | C20: 2018-01-01 | D20: 2018-01-31 | E20: 109 | F20: 2018-02-03 | G20: Á | H20: 150000 | I20: 0 | J20: 0 | K20: 8000 | L20: 2000 | M20: 0 | N20: 158000 | O20: 2000 | P20: =J20+M20 -> 0 | Q20: 29250 | R20: 0 | S20: 0 | T20: K+F/Alap. | U20: 1
A21: Gipsz Jakab | B21: Techn., segédszem. | C21: 2018-02-01 | D21: 2018-02-28 | E21: 109 | F21: 2018-03-03 | G21: Á | H21: 150000 | I21: 0 | J21: 0 | K21: 8000 | L21: 2000 | M21: 0 | N21: 158000 | O21: 2000 | P21: 0 | Q21: 29250 | R21: 0 | S21: 0 | T21: K+F/Alap. | U21: 1
A22: Gipsz Jakab | B22: Techn., segédszem. | C22: 2018-03-01 | D22: 2018-03-31 | E22: 70 | F22: 2018-05-03 | G22: Á | H22: 150000 | I22: 0 | J22: 0 | K22: 8000 | L22: 2000 | M22: 0 | N22: 158000 | O22: 2000 | P22: 0 | Q22: 29250 | R22: 0 | S22: 0 | T22: K+F/Alap. | U22: 1
A23: Gipsz Jakab | B23: Techn., segédszem. | C23: 2018-04-01 | D23: 2018-04-30 | E23: 59 | F23: 2018-05-03 | G23: Á | H23: 150000 | I23: 0 | J23: 0 | K23: 0 | L23: 0 | M23: 0 | N23: 150000 | O23: 0 | P23: 0 | Q23: 29250 | R23: 0 | S23: 0 | T23: K+F/Alap. | U23: 1
A24: Gipsz Jakab | B24: Techn., segédszem. | C24: 2018-05-01 | D24: 2018-05-31 | E24: 79 | F24: 2018-07-03 | G24: Á | H24: 150000 | I24: 0 | J24: 0 | K24: 0 | L24: 0 | M24: 0 | N24: 150000 | O24: 0 | P24: =J24+M24 -> 0 | Q24: 29250 | R24: 0 | S24: 0 | T24: K+F/Alap. | U24: 1
A25: Gipsz Jakab | B25: Techn., segédszem. | C25: 2018-06-01 | D25: 2018-06-30 | E25: 79 | F25: 2018-07-03 | G25: Á | H25: 150000 | I25: 0 | J25: 0 | K25: 0 | L25: 0 | M25: 0 | N25: 150000 | O25: 0 | P25: 0 | Q25: 29250 | R25: 0 | S25: 0 | T25: K+F/Alap. | U25: 1
A26: Gipsz Jakab | B26: Techn., segédszem. | C26: 2018-07-01 | D26: 2018-07-31 | E26: 79 | F26: 2018-08-03 | G26: Á | H26: 150000 | I26: 0 | J26: 0 | K26: 0 | L26: 0 | M26: 0 | N26: =H26+K26 -> 150000 | O26: 0 | P26: 0 | Q26: 29250 | R26: 0 | S26: 0 | T26: K+F/Alap. | U26: 1
A27: Gipsz Jakab | B27: Techn., segédszem. | C27: 2018-08-01 | D27: 2018-08-31 | E27: 79 | F27: 2018-09-03 | G27: Á | H27: 150000 | I27: 0 | J27: 0 | K27: 0 | L27: 0 | M27: 0 | N27: 150000 | O27: 0 | P27: 0 | Q27: 29250 | R27: 0 | S27: 0 | T27: K+F/Alap. | U27: 1
A28: Szabó János | B28: K+F munkatárs | C28: 2018-03-01 | D28: 2018-03-31 | E28: 152 | F28: 2018-04-03 | G28: Á | H28: 600000 | I28: 150000 | J28: 0 | K28: 8000 | L28: 2000 | M28: 0 | N28: =H28+K28 -> 608000 | O28: =I28+L28 -> 152000 | P28: 0 | Q28: 117000 | R28: 29250 | S28: 0 | T28: K+F/Kis.fejl. | U28: 0.8
A29: Szabó János | B29: K+F munkatárs | C29: 2018-04-01 | D29: 2018-04-30 | E29: 160 | F29: 2018-05-03 | G29: Á | H29: 600000 | I29: 150000 | J29: 0 | K29: 0 | L29: 0 | M29: 0 | N29: 600000 | O29: 150000 | P29: 0 | Q29: 117000 | R29: 29250 | S29: 0 | T29: K+F/Kis.fejl. | U29: 0.8
A30: Szabó János | B30: K+F munkatárs | C30: 2018-05-01 | D30: 2018-05-31 | E30: 168 | F30: 2018-06-03 | G30: Á | H30: 600000 | I30: 150000 | J30: 0 | K30: 0 | L30: 0 | M30: 0 | N30: 600000 | O30: 150000 | P30: 0 | Q30: 117000 | R30: 29250 | S30: 0 | T30: K+F/Kis.fejl. | U30: 0.8
A31: Szabó János | B31: K+F munkatárs | C31: 2018-06-01 | D31: 2018-06-30 | E31: 152 | F31: 2018-07-03 | G31: Á | H31: 600000 | I31: 150000 | J31: 0 | K31: 0 | L31: 0 | M31: 0 | N31: 600000 | O31: 150000 | P31: 0 | Q31: 117000 | R31: 29250 | S31: 0 | T31: K+F/Kis.fejl. | U31: 0.8
A32: Szabó János | B32: K+F munkatárs | C32: 2018-07-01 | D32: 2018-07-31 | E32: 176 | F32: 2018-08-03 | G32: Á | H32: 600000 | I32: 150000 | J32: 0 | K32: 0 | L32: 0 | M32: 0 | N32: 600000 | O32: 150000 | P32: 0 | Q32: 117000 | R32: 29250 | S32: 0 | T32: K+F/Kis.fejl. | U32: 0.8
A33: Szabó János | B33: K+F munkatárs | C33: 2018-08-01 | D33: 2018-08-31 | E33: 176 | F33: 2018-09-03 | G33: Á | H33: 600000 | I33: 150000 | J33: 0 | K33: 0 | L33: 0 | M33: 0 | N33: 600000 | O33: 150000 | P33: 0 | Q33: 117000 | R33: 29250 | S33: 0 | T33: K+F/Kis.fejl. | U33: 0.8
A34: Szabó János | B34: K+F munkatárs | C34: 2018-09-01 | D34: 2018-09-30 | E34: 80 | F34: 2018-10-03 | G34: Á | H34: 600000 | I34: 150000 | J34: 0 | K34: 0 | L34: 0 | M34: 0 | N34: 600000 | O34: 150000 | P34: 0 | Q34: 117000 | R34: 29250 | S34: 0 | T34: K+F/Kis.fejl. | U34: 0.8
A35: Szabó János | B35: K+F munkatárs | C35: 2018-10-01 | D35: 2018-10-31 | E35: 168 | F35: 2018-11-03 | G35: Á | H35: 600000 | I35: 150000 | J35: 0 | K35: 0 | L35: 0 | M35: 0 | N35: 600000 | O35: 150000 | P35: 0 | Q35: 117000 | R35: 29250 | S35: 0 | T35: K+F/Kis.fejl. | U35: 0.8
A36: Kiss János | B36: Techn., segédszem. | C36: 2018-01-01 | D36: 2018-01-31 | E36: 109 | F36: 2018-02-03 | G36: Á | H36: 120000 | I36: 30000 | J36: 0 | K36: 8000 | L36: 2000 | M36: 0 | N36: =H36+K36 -> 128000 | O36: =I36+L36 -> 32000 | P36: 0 | Q36: 23400 | R36: 5850 | S36: 0 | T36: K+F/Kis.fejl. | U36: 0.8
A37: Kiss János | B37: Techn., segédszem. | C37: 2018-02-01 | D37: 2018-02-28 | E37: 109 | F37: 2018-03-03 | G37: Á | H37: 120000 | I37: 30000 | J37: 0 | K37: 8000 | L37: 2000 | M37: 0 | N37: 128000 | O37: 32000 | P37: 0 | Q37: 23400 | R37: 5850 | S37: 0 | T37: K+F/Kis.fejl. | U37: 0.8
A38: Kiss János | B38: Techn., segédszem. | C38: 2018-03-01 | D38: 2018-03-31 | E38: 70 | F38: 2018-05-03 | G38: Á | H38: 120000 | I38: 30000 | J38: 0 | K38: 8000 | L38: 2000 | M38: 0 | N38: 128000 | O38: 32000 | P38: 0 | Q38: 23400 | R38: 5850 | S38: 0 | T38: K+F/Kis.fejl. | U38: 0.8
A39: Kiss János | B39: Techn., segédszem. | C39: 2018-04-01 | D39: 2018-04-30 | E39: 59 | F39: 2018-05-03 | G39: Á | H39: 120000 | I39: 30000 | J39: 0 | K39: 0 | L39: 0 | M39: 0 | N39: 120000 | O39: 30000 | P39: 0 | Q39: 23400 | R39: 5850 | S39: 0 | T39: K+F/Kis.fejl. | U39: 0.8
A40: Kiss János | B40: Techn., segédszem. | C40: 2018-05-01 | D40: 2018-05-31 | E40: 79 | F40: 2018-07-03 | G40: Á | H40: 160000 | I40: 40000 | J40: 0 | K40: 0 | L40: 0 | M40: 0 | N40: 160000 | O40: 40000 | P40: 0 | Q40: 31200 | R40: 7800 | S40: 0 | T40: K+F/Kis.fejl. | U40: 0.8
A41: Kiss János | B41: Techn., segédszem. | C41: 2018-06-01 | D41: 2018-06-30 | E41: 79 | F41: 2018-07-03 | G41: Á | H41: 160000 | I41: 40000 | J41: 0 | K41: 0 | L41: 0 | M41: 0 | N41: 160000 | O41: 40000 | P41: 0 | Q41: 31200 | R41: 7800 | S41: 0 | T41: K+F/Kis.fejl. | U41: 0.8
A42: Kiss János | B42: Techn., segédszem. | C42: 2018-07-01 | D42: 2018-07-31 | E42: 79 | F42: 2018-08-03 | G42: Á | H42: 160000 | I42: 40000 | J42: 0 | K42: 0 | L42: 0 | M42: 0 | N42: 160000 | O42: 40000 | P42: 0 | Q42: 31200 | R42: 7800 | S42: 0 | T42: K+F/Kis.fejl. | U42: 0.8
A43: Kiss János | B43: Techn., segédszem. | C43: 2018-08-01 | D43: 2018-08-31 | E43: 79 | F43: 2018-09-03 | G43: Á | H43: 160000 | I43: 40000 | J43: 0 | K43: 0 | L43: 0 | M43: 0 | N43: 160000 | O43: 40000 | P43: 0 | Q43: 31200 | R43: 7800 | S43: 0 | T43: K+F/Kis.fejl. | U43: 0.8
A45: Összesen: | H45: =SUM(H9:H43) -> 14270000 | I45: =SUM(I9:I43) -> 1480000 | J45: 0 | K45: 88000 | L45: 22000 | M45: 0 | N45: 14358000 | O45: 1502000 | P45: 0 | Q45: 2782650 | R45: 288600 | S45: 0
A47: * Amennyiben a pályázati felhívás/útmutató megengedi a szabadság, betegszabadság, ünnepnap elszámolását a projekt terhére, úgy szíveskedjenek a feltüntetett munkaórákba beleszámítani ezek idejét is!

Sheet (51) anyagköltség
A1: Kedvezményezett neve: | E1: =+'(KNY)könyvvizsgálói nyilatkozat'!$B4 -> MINTA Kft.
A2: Szerződésszám: | E2: =+'(KNY)könyvvizsgálói nyilatkozat'!$B5 -> 2017-1.2.1-NKP-0000-00000
A3: Az elszámolással érintett időszak kezdete és vége: | E3: =+'(KNY)könyvvizsgálói nyilatkozat'!$B6 -> 2017.11.01.-2018.10.31.
A5: 51 Anyagköltség
A7: Sor-szám | B7: Számviteli bizonylat kiállítójának neve | C7: Adószáma | D7: Számviteli bizonylat sorszáma | E7: Kiállítás kelte | F7: Teljesítés dátuma | G7: Pénzügyi teljesítés időpontja | H7: Gazdasági esemény rövid leírása | I7: Összege (Ft) | L7: Projekt terhére elszámolt költségek (Ft) | P7: Támogatás típusa | Q7: Tám. int.
A8: szám | I8: Bruttó | J8: Nettó | K8: ÁFA | L8: Támogatás | M8: Saját forrás | N8: Egyéb f. | O8: Összesen
A9: 1. | B9: ANYAG Kft. | C9: 11111111-1-11 | D9: A-12345 | E9: 2018-09-14 | F9: 2018-09-14 | G9: 2018-11-05 | H9: műszerdoboz, tápegység | I9: 77500 | J9: 61024 | K9: 16476 | L9: 77500 | M9: 0 | N9: 0 | O9: 77500 | P9: K+F/Alap. | Q9: 1
A10: 2. | B10: Nitrogén Kft. | C10: 22222222-2-22 | D10: B-11111 | E10: 2018-07-01 | F10: 2018-06-26 | G10: 2018-08-19 | H10: cseppfolyós nitrogén | I10: 103632 | J10: 81600 | K10: 22032 | L10: 103632 | M10: 0 | N10: 0 | O10: 103632 | P10: K+F/Alap. | Q10: 1
A11: 3. | B11: Import Gmbh. | C11: 12345678 | D11: 12345 | E11: 2018-02-06 | F11: 2018-02-06 | G11: 2018-03-05 | H11: Toxkit | I11: 222546 | J11: 222546 | K11: 0 | L11: 222546 | M11: 0 | N11: 0 | O11: 222546 | P11: K+F/Alap. | Q11: 1
A12: 4. | B12: Nemzeti Adó- és Vámhivatal | C12: 15789934-2-51 | D12: 12345 | E12: 2018-02-06 | F12: 2018-02-06 | G12: 2018-02-06 | H12: Fordított áfa - toxkit-Import Gmbh. - 12345 | I12: 54920 | J12: 0 | K12: 54920 | L12: 54920 | M12: 0 | N12: 0 | O12: 54920 | P12: K+F/Alap. | Q12: 1
A26: Összesen | I26: =SUM(I9:I24) -> 458598 | J26: =SUM(J9:J24) -> 365170 | K26: 93428 | L26: 458598 | M26: 0 | N26: 0 | O26: 458598

Sheet (52) igénybe vett szolg
A1: Kedvezményezett neve: | E1: =+'(KNY)könyvvizsgálói nyilatkozat'!$B4 -> MINTA Kft.
A2: Szerződésszám: | E2: =+'(KNY)könyvvizsgálói nyilatkozat'!$B5 -> 2017-1.2.1-NKP-0000-00000
A3: Az elszámolással érintett időszak kezdete és vége: | E3: =+'(KNY)könyvvizsgálói nyilatkozat'!$B6 -> 2017.11.01.-2018.10.31.
A5: 52 Igénybe vett szolgáltatások
A7: Sor-szám | B7: Számviteli bizonylat kiállítójának neve | C7: Adószáma | D7: Számviteli bizonylat sorszáma | E7: Kiállítás kelte | F7: Teljesítés dátuma | G7: Pénzügyi teljesítés időpontja | H7: Gazdasági esemény rövid leírása | I7: Összege (Ft) | L7: Projekt terhére elszámolt költségek (Ft) | P7: Támogatás típusa | Q7: Tám. int.
A8: szám | I8: Bruttó | J8: Nettó | K8: ÁFA | L8: Támogatás | M8: Saját forrás | N8: Egyéb f. | O8: Összesen
A9: 1. | B9: Rezsi Bt | C9: 33333333-3-33 | D9: 100 | E9: 2017-11-01 | F9: 2018-10-31 | G9: 2018.11.29 | H9: rezsi | I9: 1000000 | J9: 0 | K9: 0 | L9: =+I9 -> 1000000 | M9: 0 | N9: 0 | O9: =SUM(L9:N9) -> 1000000 | P9: D.M./Rezsi | Q9: 1
A10: 2. | B10: Szolg Bt. | C10: 44444444-4-44 | D10: SZ-123456 | E10: 2018.10.01 | F10: 2018.10.01 | G10: 2018.10.08 | H10: tanácsadás | I10: 635000 | J10: 500000 | K10: 135000 | L10: =+I10 -> 635000 | M10: - | N10: - | O10: =SUM(L10:N10) -> 635000 | P10: K+F/Alap. | Q10: 1
O11: =SUM(L11:N11) -> 0
O12: 0
O13: 0
O14: 0
O15: 0
O16: 0
O17: 0
O18: 0
O19: 0
O20: 0
O21: 0
O22: 0
O23: 0
O24: 0
O25: 0
O26: 0
A28: Összesen | I28: =SUM(I9:I26) -> 1635000 | J28: 500000 | K28: 135000 | L28: 1635000 | M28: 0 | N28: 0 | O28: 1635000

Sheet (53) egyéb szolgáltatások
A1: Kedvezményezett neve: | D1: =+'(KNY)könyvvizsgálói nyilatkozat'!$B4 -> MINTA Kft.
A2: Szerződésszám: | D2: =+'(KNY)könyvvizsgálói nyilatkozat'!$B5 -> 2017-1.2.1-NKP-0000-00000
A3: Az elszámolással érintett időszak kezdete és vége: | D3: =+'(KNY)könyvvizsgálói nyilatkozat'!$B6 -> 2017.11.01.-2018.10.31.
A5: 53 EGYÉB SZOLGÁLTATÁSOK
A7: Sor-szám | B7: Számviteli bizonylat kiállítójának neve | C7: Adószáma | D7: Számviteli bizonylat sorszáma | E7: Kiállítás kelte | F7: Teljesítés dátuma | G7: Pénzügyi teljesítés időpontja | H7: Gazdasági esemény rövid leírása | I7: Összege (Ft) | L7: Projekt terhére elszámolt költségek (Ft) | P7: Támogatás típusa | Q7: Tám. int.
A8: szám | I8: Bruttó | J8: Nettó | K8: ÁFA | L8: Támogatás | M8: Saját forrás | N8: Egyéb f. | O8: Összesen
O10: =SUM(L10:N10) -> 0
O11: 0
O12: 0
O13: 0
O14: 0
O15: 0
O16: 0
O17: 0
O18: 0
O19: 0
O20: 0
O21: 0
O22: 0
O23: 0
A25: Összesen | H25: =SUM(H9:H23) -> 0 | I25: 0 | J25: 0 | K25: 0 | L25: 0 | M25: 0 | N25: 0 | O25: 0

Sheet (11) immat jav beszerz
A1: Kedvezményezett neve: | D1: =+'(KNY)könyvvizsgálói nyilatkozat'!$B4 -> MINTA Kft.
A2: Szerződésszám: | D2: =+'(KNY)könyvvizsgálói nyilatkozat'!$B5 -> 2017-1.2.1-NKP-0000-00000
A3: Az elszámolással érintett időszak kezdete és vége: | D3: =+'(KNY)könyvvizsgálói nyilatkozat'!$B6 -> 2017.11.01.-2018.10.31.
A6: 11 IMMATERIÁLIS JAVAK BESZERZÉSE
A8: Sor-szám | B8: Számviteli bizonylat kiállítójának neve | C8: Adószáma | D8: Számviteli bizonylat sorszáma | E8: Kiállítás kelte | F8: Teljesítés dátuma | G8: Pénzügyi teljesítés időpontja | H8: Amortizációnál az elszámolt időszak | J8: amortizá-ciós kulcs % | K8: Gazdasági esemény rövid leírása | L8: Összege (Ft) | O8: Projekt terhére elszámolt költségek (Ft) | S8: Támogatás típusa | T8: Tám. int.
A9: szám | H9: kezdete (dátum) | I9: vége (dátum) | L9: Bruttó | M9: Nettó | N9: ÁFA | O9: Támogatás | P9: Saját forrás | Q9: Egyéb f. | R9: Összesen
A10: 1. | B10: Licence Kft. | C10: 7777777-7-77 | D10: SZA99999 | E10: 2017-11-01 | F10: 2018-10-31 | G10: 2018-11-13 | H10: 2017-11-01 | I10: 2018-10-31 | J10: 0.33 | K10: professional licenc - éves écs | L10: 1356360 | M10: 1068000 | N10: 288360 | O10: 223799 | P10: 176220 | Q10: 47579 | R10: =SUM(O10:Q10) -> 447598 | S10: K+F/Kis.fejl. | T10: 0.5
R11: =SUM(O11:Q11) -> 0
R12: 0
R13: 0
R14: 0
R15: 0
R16: 0
R17: 0
R18: 0
R19: 0
R20: 0
R21: 0
R22: 0
R23: 0
R24: 0
R25: 0
A27: Összesen | L27: =SUM(L10:L26) -> 1356360 | M27: =SUM(M10:M26) -> 1068000 | N27: 288360 | O27: =SUM(O10:O26) -> 223799 | P27: =SUM(P10:P26) -> 176220 | Q27: 47579 | R27: 447598
A32: * Az aláírók nevét nyomtatott betűkkel is kérjük kitölteni.

Sheet (13) műszaki berendezések
A1: Kedvezményezett neve: | D1: =+'(KNY)könyvvizsgálói nyilatkozat'!$B4 -> MINTA Kft.
A2: Szerződésszám: | D2: =+'(KNY)könyvvizsgálói nyilatkozat'!$B5 -> 2017-1.2.1-NKP-0000-00000
A3: Az elszámolással érintett időszak kezdete és vége: | D3: =+'(KNY)könyvvizsgálói nyilatkozat'!$B6 -> 2017.11.01.-2018.10.31.
A6: 13 Műszaki berendezések, gépek, járművek
A8: Sor-szám | B8: Számviteli bizonylat kiállítójának neve | C8: Adószáma | D8: Számviteli bizonylat sorszáma | E8: Kiállítás kelte | F8: Teljesítés dátuma | G8: Pénzügyi teljesítés időpontja | H8: Amortizációnál az elszámolt időszak | J8: amortizá-ciós kulcs % | K8: Gazdasági esemény rövid leírása | L8: Összege (Ft) | O8: Projekt terhére elszámolt költségek (Ft) | S8: Támogatás típusa | T8: Tám. int.
A9: szám | H9: kezdete (dátum) | I9: vége (dátum) | L9: Bruttó | M9: Nettó | N9: ÁFA | O9: Támogatás | P9: Saját forrás | Q9: Egyéb f. | R9: Összesen
A10: 1. | B10: Eszköz Kft. | C10: 55555555-5-55 | D10: E-12345 | E10: 2018-04-15 | F10: 2018-04-01 | G10: 2018-04-15 | K10: monitorok - előleg | L10: 127000 | M10: 100000 | N10: 27000 | S10: K+F/Alap. | T10: 1
A11: 2. | B11: Eszköz Kft. | C11: 55555555-5-55 | D11: R-11111 | E11: 2018-05-01 | F11: 2018-04-01 | G11: 2018-05-15 | K11: monitorok - részszámla | L11: 479298 | M11: 377400 | N11: 101898 | O11: 0 | P11: 0 | Q11: 0 | R11: 0 | S11: K+F/Alap. | T11: 1
A12: 3. | B12: Eszköz Kft. | C12: 55555555-5-55 | D12: V-22222 | E12: 2018-05-08 | F12: 2018-05-08 | G12: 2018-05-16 | H12: 2018-04-01 | I12: 2018-10-31 | J12: 0.25 | K12: monitorok - végszámla - 1/2 évre von.écs | L12: 0 | M12: 0 | N12: 0 | O12: 37894 | P12: 29837 | Q12: 3222 | R12: =SUM(O12:Q12) -> 70953 | S12: K+F/Alap. | T12: 0.5
R13: 0
R14: 0
R15: 0
R16: 0
R17: 0
R18: 0
R19: 0
R20: 0
R21: 0
R22: 0
R23: 0
R24: 0
A26: Összesen | L26: =SUM(L10:L25) -> 606298 | M26: =SUM(M10:M25) -> 477400 | N26: =SUM(N10:N25) -> 128898 | O26: =SUM(O10:O25) -> 37894 | P26: =SUM(P10:P25) -> 29837 | Q26: 3222 | R26: 70953

Sheet (14) egyéb berendezések
A1: Kedvezményezett neve: | D1: =+'(KNY)könyvvizsgálói nyilatkozat'!$B4 -> MINTA Kft.
A2: Szerződésszám: | D2: =+'(KNY)könyvvizsgálói nyilatkozat'!$B5 -> 2017-1.2.1-NKP-0000-00000
A3: Az elszámolással érintett időszak kezdete és vége: | D3: =+'(KNY)könyvvizsgálói nyilatkozat'!$B6 -> 2017.11.01.-2018.10.31.
A6: 14 Egyéb berendezések, felszerelések, járművek
A8: Sor-szám | B8: Számviteli bizonylat kiállítójának neve | C8: Adószáma | D8: Számviteli bizonylat sorszáma | E8: Kiállítás kelte | F8: Teljesítés dátuma | G8: Pénzügyi teljesítés időpontja | H8: Amortizációnál az elszámolt időszak | J8: amortizá-ciós kulcs % | K8: Gazdasági esemény rövid leírása | L8: Összege (Ft) | O8: Projekt terhére elszámolt költségek (Ft) | S8: Támogatás típusa | T8: Tám. int.
A9: szám | H9: kezdete (dátum) | I9: vége (dátum) | L9: Bruttó | M9: Nettó | N9: ÁFA | O9: Támogatás | P9: Saját forrás | Q9: Egyéb f. | R9: Összesen
A11: 2. | R11: =SUM(O11:Q11) -> 0
R12: 0
R13: 0
R14: 0
R15: 0
R16: 0
R17: 0
R18: 0
R19: 0
R20: 0
R21: 0
R22: 0
R23: 0
R24: 0
R25: 0
A27: Összesen | L27: =SUM(L10:L26) -> 0 | M27: =SUM(M10:M26) -> 0 | N27: 0 | O27: =SUM(O10:O26) -> 0 | P27: =SUM(P10:P26) -> 0 | Q27: 0 | R27: 0

Sheet (16) beruházás,felújítás
A1: Kedvezményezett neve: | D1: =+'(KNY)könyvvizsgálói nyilatkozat'!$B4 -> MINTA Kft.
A2: Szerződésszám: | D2: =+'(KNY)könyvvizsgálói nyilatkozat'!$B5 -> 2017-1.2.1-NKP-0000-00000
A3: Az elszámolással érintett időszak kezdete és vége: | D3: =+'(KNY)könyvvizsgálói nyilatkozat'!$B6 -> 2017.11.01.-2018.10.31.
A6: 16 BERUZÁZÁSOK, FELÚJÍTÁSOK
A8: Sor-szám | B8: Számviteli bizonylat kiállítójának neve | C8: Adószáma | D8: Számviteli bizonylat sorszáma | E8: Kiállítás kelte | F8: Teljesítés dátuma | G8: Pénzügyi teljesítés időpontja | H8: Amortizációnál az elszámolt időszak | J8: amortizá-ciós kulcs % | K8: Gazdasági esemény rövid leírása | L8: Összege (Ft) | O8: Projekt terhére elszámolt költségek (Ft) | S8: Támogatás típusa | T8: Tám. int.
A9: szám | H9: kezdete (dátum) | I9: vége (dátum) | L9: Bruttó | M9: Nettó | N9: ÁFA | O9: Támogatás | P9: Saját forrás | Q9: Egyéb f. | R9: Összesen
A11: 2. | R11: =SUM(O11:Q11) -> 0
R12: 0
R13: 0
R14: 0
R15: 0
R16: 0
R17: 0
R18: 0
R19: 0
R20: 0
R21: 0
R22: 0
R23: 0
R24: 0
R25: 0
A27: Összesen | L27: =SUM(L10:L26) -> 0 | M27: =SUM(M10:M26) -> 0 | N27: 0 | O27: =SUM(O10:O26) -> 0 | P27: =SUM(P10:P26) -> 0 | Q27: 0 | R27: 0

Sheet tám. típus összesítő
A1: Kedvezményezett neve: | F1: =+'(KNY)könyvvizsgálói nyilatkozat'!B4 -> MINTA Kft. | P1: Kedvezményezett neve: | U1: =F1 -> MINTA Kft. | AE1: Kedvezményezett neve: | AJ1: =+F1 -> MINTA Kft. | AS1: Kedvezményezett neve: | AX1: =F1 -> MINTA Kft.
A2: Szerződésszám: | F2: =+'(KNY)könyvvizsgálói nyilatkozat'!B5 -> 2017-1.2.1-NKP-0000-00000 | P2: Szerződésszám: | U2: =F2 -> 2017-1.2.1-NKP-0000-00000 | AE2: Szerződésszám: | AJ2: =+F2 -> 2017-1.2.1-NKP-0000-00000 | AS2: Szerződésszám: | AX2: =F2 -> 2017-1.2.1-NKP-0000-00000
A3: Mérföldkő dátuma: | F3: =+'(KNY)könyvvizsgálói nyilatkozat'!B6 -> 2017.11.01.-2018.10.31. | P3: Mérföldkő dátuma: | U3: =F3 -> 2017.11.01.-2018.10.31. | AE3: Mérföldkő dátuma: | AJ3: 2017.11.01.-2018.10.31. | AS3: Mérföldkő dátuma: | AX3: =F3 -> 2017.11.01.-2018.10.31.
A5: TÁMOGATÁS | P5: SAJÁT FORRÁS | AE5: EGYÉB FORRÁS | AS5: ÖSSZESÍTÉS
A7: sor-szám | B7: támogatás típusa | C7: támog. int. | D7: (54) személyi juttatások | E7: (56) járulék | F7: (51) anyagköltség | G7: (52) igénybe vett szolgáltatások | H7: (53) egyéb szolgáltatások | I7: (11) immateriális javak beszerzése | J7: (13) műszaki berendezések | K7: (14) egyéb berendezések | L7: (16) beruházás,felújítás | M7: összesen | P7: sor-szám | Q7: támogatás típusa | R7: támog. int. | S7: (54) személyi juttatások | T7: (56) járulék | U7: (51) anyagköltség | V7: (52) igénybe vett szolgáltatások | W7: (53) egyéb szolgáltatások | X7: (11) immateriális javak beszerzése | Y7: (13) műszaki berendezések | Z7: (14) egyéb berendezések | AA7: (16) beruházás,felújítás | AB7: összesen | AE7: sor-szám | AF7: támogatás típusa | AG7: támog. int. | AH7: (54) személyi juttatások | AI7: (56) járulék | AJ7: (51) anyagköltség | AK7: (52) igénybe vett szolgáltatások | AL7: (53) egyéb szolgáltatások | AM7: (11) immateriális javak beszerzése | AN7: (13) műszaki berendezések | AO7: (14) egyéb berendezések | AP7: (16) beruházás,felújítás | AQ7: összesen | AS7: sor-szám | AT7: támogatás típusa | AU7: támog. int. | AV7: (54) személyi juttatások | AW7: (56) járulék | AX7: (51) anyagköltség | AY7: (52) igénybe vett szolgáltatások | AZ7: (53) egyéb szolgáltatások | BA7: (11) immateriális javak beszerzése | BB7: (13) műszaki berendezések | BC7: (14) egyéb berendezések | BD7: (16) beruházás,felújítás | BE7: összesen
A8: 1 | B8: K+F/Alap. | C8: 0 | D8: =+'(54-56) személyi+járulék'!N45 -> 14358000 | E8: =+'(54-56) személyi+járulék'!Q45 -> 2782650 | F8: =SUMIF('(51) anyagköltség '!$P:$P,B8,'(51) anyagköltség '!$L:$L) -> 458598 | G8: =SUMIF('(52) igénybe vett szolg'!$P:$P,B8,'(52) igénybe vett szolg'!$L:$L) -> 635000 | H8: =SUMIF('(53) egyéb szolgáltatások'!$P:$P,$B8,'(52) igénybe vett szolg'!$L:$L) -> 0 | I8: =SUMIF('(11) immat jav beszerz'!$S:$S,$B8,'(11) immat jav beszerz'!$O:$O) -> 0 | J8: =SUMIF('(13) műszaki berendezések'!$S:$S,$B8,'(13) műszaki berendezések'!$O:$O) -> 37894 | K8: =SUMIF('(14) egyéb berendezések'!$S:$S,$B8,'(14) egyéb berendezések'!$O:$O) -> 0 | L8: =SUMIF('(16) beruházás,felújítás'!$S:$S,$B8,'(16) beruházás,felújítás'!$O:$O) -> 0 | M8: =SUM(C8:L8) -> 18272142 | P8: 1 | Q8: K+F/Alap. | R8: 0 | S8: =SUMIF('(54-56) személyi+járulék'!$T:$T,Q8,'(54-56) személyi+járulék'!$O:$O) -> 14000 | T8: =SUMIF('(54-56) személyi+járulék'!$T:$T,Q8,'(54-56) személyi+járulék'!$R:$R) -> 0 | U8: =SUMIF('(51) anyagköltség '!$P:$P,Q8,'(51) anyagköltség '!$M:$M) -> 0 | V8: =SUMIF('(52) igénybe vett szolg'!$P:$P,Q8,'(52) igénybe vett szolg'!$M:$M) -> 0 | W8: =SUMIF('(53) egyéb szolgáltatások'!$P:$P,$B8,'(52) igénybe vett szolg'!$M:$M) -> 0 | X8: =SUMIF('(11) immat jav beszerz'!$S:$S,$B8,'(11) immat jav beszerz'!$P:$P) -> 0 | Y8: =SUMIF('(13) műszaki berendezések'!$S:$S,$B8,'(13) műszaki berendezések'!$P:$P) -> 29837 | Z8: =SUMIF('(14) egyéb berendezések'!$S:$S,$B8,'(14) egyéb berendezések'!$P:$P) -> 0 | AA8: =SUMIF('(16) beruházás,felújítás'!$S:$S,$B8,'(16) beruházás,felújítás'!$P:$P) -> 0 | AB8: =SUM(R8:AA8) -> 43837 | AE8: 1 | AF8: K+F/Alap. | AG8: 0 | AH8: =SUMIF('(54-56) személyi+járulék'!$T:$T,AF8,'(54-56) személyi+járulék'!$P:$P) -> 0 | AI8: =SUMIF('(54-56) személyi+járulék'!$T:$T,AF8,'(54-56) személyi+járulék'!$S:$S) -> 0 | AJ8: =SUMIF('(51) anyagköltség '!$P:$P,AF8,'(51) anyagköltség '!$N:$N) -> 0 | AK8: =SUMIF('(52) igénybe vett szolg'!$P:$P,AF8,'(52) igénybe vett szolg'!$N:$N) -> 0 | AL8: =SUMIF('(53) egyéb szolgáltatások'!$P:$P,$B8,'(52) igénybe vett szolg'!$N:$N) -> 0 | AM8: =SUMIF('(11) immat jav beszerz'!$S:$S,$B8,'(11) immat jav beszerz'!$Q:$Q) -> 0 | AN8: =SUMIF('(13) műszaki berendezések'!$S:$S,$B8,'(13) műszaki berendezések'!$Q:$Q) -> 3222 | AO8: =SUMIF('(14) egyéb berendezések'!$S:$S,$B8,'(14) egyéb berendezések'!$Q:$Q) -> 0 | AP8: =SUMIF('(16) beruházás,felújítás'!$S:$S,$B8,'(16) beruházás,felújítás'!$Q:$Q) -> 0 | AQ8: =SUM(AG8:AP8) -> 3222 | AS8: 1 | AT8: K+F/Alap. | AU8: 0 | AV8: =+D8+S8+AH8 -> 14372000 | AW8: =+E8+T8+AI8 -> 2782650 | AX8: 458598 | AY8: 635000 | AZ8: 0 | BA8: 0 | BB8: 70953 | BC8: 0 | BD8: 0 | BE8: =SUM(AU8:BD8) -> 18319201
A9: 2 | B9: K+F/Alkalm. | C9: 0 | D9: =SUMIF('(54-56) személyi+járulék'!$T:$T,B9,'(54-56) személyi+járulék'!$N:$N) -> 0 | E9: =SUMIF('(54-56) személyi+járulék'!$T:$T,B9,'(54-56) személyi+járulék'!$Q:$Q) -> 0 | F9: =SUMIF('(51) anyagköltség '!P:P,B9,'(51) anyagköltség '!L:L) -> 0 | G9: =SUMIF('(52) igénybe vett szolg'!P:P,B9,'(52) igénybe vett szolg'!L:L) -> 0 | H9: =SUMIF('(53) egyéb szolgáltatások'!$P:$P,$B9,'(52) igénybe vett szolg'!$L:$L) -> 0 | I9: =SUMIF('(11) immat jav beszerz'!$S:$S,$B9,'(11) immat jav beszerz'!$O:$O) -> 0 | J9: =SUMIF('(13) műszaki berendezések'!$S:$S,$B9,'(13) műszaki berendezések'!$O:$O) -> 0 | K9: =SUMIF('(14) egyéb berendezések'!$S:$S,$B9,'(14) egyéb berendezések'!$O:$O) -> 0 | L9: =SUMIF('(16) beruházás,felújítás'!$S:$S,$B9,'(16) beruházás,felújítás'!$O:$O) -> 0 | M9: =SUM(C9:L9) -> 0 | P9: 2 | Q9: K+F/Alkalm. | R9: 0 | S9: =SUMIF('(54-56) személyi+járulék'!$T:$T,Q9,'(54-56) személyi+járulék'!$O:$O) -> 0 | T9: =SUMIF('(54-56) személyi+járulék'!$T:$T,Q9,'(54-56) személyi+járulék'!$R:$R) -> 0 | U9: =SUMIF('(51) anyagköltség '!$P:$P,Q9,'(51) anyagköltség '!$M:$M) -> 0 | V9: =SUMIF('(52) igénybe vett szolg'!$P:$P,Q9,'(52) igénybe vett szolg'!$M:$M) -> 0 | W9: =SUMIF('(53) egyéb szolgáltatások'!$P:$P,$B9,'(52) igénybe vett szolg'!$M:$M) -> 0 | X9: =SUMIF('(11) immat jav beszerz'!$S:$S,$B9,'(11) immat jav beszerz'!$P:$P) -> 0 | Y9: =SUMIF('(13) műszaki berendezések'!$S:$S,$B9,'(13) műszaki berendezések'!$P:$P) -> 0 | Z9: =SUMIF('(14) egyéb berendezések'!$S:$S,$B9,'(14) egyéb berendezések'!$P:$P) -> 0 | AA9: =SUMIF('(16) beruházás,felújítás'!$S:$S,$B9,'(16) beruházás,felújítás'!$P:$P) -> 0 | AB9: =SUM(R9:AA9) -> 0 | AE9: 2 | AF9: K+F/Alkalm. | AG9: 0 | AH9: =SUMIF('(54-56) személyi+járulék'!$T:$T,AF9,'(54-56) személyi+járulék'!$N:$N) -> 0 | AI9: =SUMIF('(54-56) személyi+járulék'!$T:$T,AF9,'(54-56) személyi+járulék'!$Q:$Q) -> 0 | AJ9: =SUMIF('(51) anyagköltség '!AT:AT,AF9,'(51) anyagköltség '!AP:AP) -> 0 | AK9: =SUMIF('(52) igénybe vett szolg'!AT:AT,AF9,'(52) igénybe vett szolg'!AP:AP) -> 0 | AL9: =SUMIF('(53) egyéb szolgáltatások'!$P:$P,$B9,'(52) igénybe vett szolg'!$L:$L) -> 0 | AM9: =SUMIF('(11) immat jav beszerz'!$S:$S,$B9,'(11) immat jav beszerz'!$O:$O) -> 0 | AN9: =SUMIF('(13) műszaki berendezések'!$S:$S,$B9,'(13) műszaki berendezések'!$O:$O) -> 0 | AO9: =SUMIF('(14) egyéb berendezések'!$S:$S,$B9,'(14) egyéb berendezések'!$O:$O) -> 0 | AP9: =SUMIF('(16) beruházás,felújítás'!$S:$S,$B9,'(16) beruházás,felújítás'!$O:$O) -> 0 | AQ9: =SUM(AG9:AP9) -> 0 | AS9: 2 | AT9: K+F/Alkalm. | AU9: 0 | AV9: =+D9+S9+AH9 -> 0 | AW9: =+E9+T9+AI9 -> 0 | AX9: =+F9+U9+AJ9 -> 0 | AY9: =+G9+V9+AK9 -> 0 | AZ9: =+H9+W9+AL9 -> 0 | BA9: =+I9+X9+AM9 -> 0 | BB9: =+J9+Y9+AN9 -> 0 | BC9: =+K9+Z9+AO9 -> 0 | BD9: =+L9+AA9+AP9 -> 0 | BE9: =SUM(AU9:BD9) -> 0
A10: 3 | B10: K+F/Kis.fejl. | C10: 0 | D10: =SUMIF('(54-56) személyi+járulék'!T:T,B10,'(54-56) személyi+járulék'!N:N) -> 5952000 | E10: =SUMIF('(54-56) személyi+járulék'!$T:$T,B10,'(54-56) személyi+járulék'!$Q:$Q) -> 1154400 | F10: =SUMIF('(51) anyagköltség '!P:P,B10,'(51) anyagköltség '!L:L) -> 0 | G10: =SUMIF('(52) igénybe vett szolg'!P:P,B10,'(52) igénybe vett szolg'!L:L) -> 0 | H10: =SUMIF('(53) egyéb szolgáltatások'!$P:$P,$B10,'(52) igénybe vett szolg'!$L:$L) -> 0 | I10: =SUMIF('(11) immat jav beszerz'!$S:$S,$B10,'(11) immat jav beszerz'!$O:$O) -> 223799 | J10: =SUMIF('(13) műszaki berendezések'!$S:$S,$B10,'(13) műszaki berendezések'!$O:$O) -> 0 | K10: =SUMIF('(14) egyéb berendezések'!$S:$S,$B10,'(14) egyéb berendezések'!$O:$O) -> 0 | L10: =SUMIF('(16) beruházás,felújítás'!$S:$S,$B10,'(16) beruházás,felújítás'!$O:$O) -> 0 | M10: 7330199 | P10: 3 | Q10: K+F/Kis.fejl. | R10: 0 | S10: =SUMIF('(54-56) személyi+járulék'!$T:$T,Q10,'(54-56) személyi+járulék'!$O:$O) -> 1488000 | T10: =SUMIF('(54-56) személyi+járulék'!$T:$T,Q10,'(54-56) személyi+járulék'!$R:$R) -> 288600 | U10: =SUMIF('(51) anyagköltség '!$P:$P,Q10,'(51) anyagköltség '!$M:$M) -> 0 | V10: =SUMIF('(52) igénybe vett szolg'!$P:$P,Q10,'(52) igénybe vett szolg'!$M:$M) -> 0 | W10: =SUMIF('(53) egyéb szolgáltatások'!$P:$P,$B10,'(52) igénybe vett szolg'!$M:$M) -> 0 | X10: =SUMIF('(11) immat jav beszerz'!$S:$S,$B10,'(11) immat jav beszerz'!$P:$P) -> 176220 | Y10: =SUMIF('(13) műszaki berendezések'!$S:$S,$B10,'(13) műszaki berendezések'!$P:$P) -> 0 | Z10: =SUMIF('(14) egyéb berendezések'!$S:$S,$B10,'(14) egyéb berendezések'!$P:$P) -> 0 | AA10: =SUMIF('(16) beruházás,felújítás'!$S:$S,$B10,'(16) beruházás,felújítás'!$P:$P) -> 0 | AB10: 1952820 | AE10: 3 | AF10: K+F/Kis.fejl. | AG10: 0 | AH10: =SUMIF('(54-56) személyi+járulék'!AX:AX,AF10,'(54-56) személyi+járulék'!AR:AR) -> 0 | AI10: =SUMIF('(54-56) személyi+járulék'!$T:$T,AF10,'(54-56) személyi+járulék'!$Q:$Q) -> 1154400 | AJ10: =SUMIF('(51) anyagköltség '!AT:AT,AF10,'(51) anyagköltség '!AP:AP) -> 0 | AK10: =SUMIF('(52) igénybe vett szolg'!AT:AT,AF10,'(52) igénybe vett szolg'!AP:AP) -> 0 | AL10: =SUMIF('(53) egyéb szolgáltatások'!$P:$P,$B10,'(52) igénybe vett szolg'!$L:$L) -> 0 | AM10: =SUMIF('(11) immat jav beszerz'!$S:$S,$B10,'(11) immat jav beszerz'!$O:$O) -> 223799 | AN10: =SUMIF('(13) műszaki berendezések'!$S:$S,$B10,'(13) műszaki berendezések'!$O:$O) -> 0 | AO10: =SUMIF('(14) egyéb berendezések'!$S:$S,$B10,'(14) egyéb berendezések'!$O:$O) -> 0 | AP10: =SUMIF('(16) beruházás,felújítás'!$S:$S,$B10,'(16) beruházás,felújítás'!$O:$O) -> 0 | AQ10: 1378199 | AS10: 3 | AT10: K+F/Kis.fejl. | AU10: 0 | AV10: 7440000 | AW10: 2597400 | AX10: 0 | AY10: 0 | AZ10: 0 | BA10: 623818 | BB10: 0 | BC10: 0 | BD10: 0 | BE10: 10661218
A11: 4 | B11: D.M./Közbesz. | C11: 0 | D11: =SUMIF('(54-56) személyi+járulék'!T:T,B11,'(54-56) személyi+járulék'!N:N) -> 0 | E11: =SUMIF('(54-56) személyi+járulék'!$T:$T,B11,'(54-56) személyi+járulék'!$Q:$Q) -> 0 | F11: =SUMIF('(51) anyagköltség '!P:P,B11,'(51) anyagköltség '!L:L) -> 0 | G11: =SUMIF('(52) igénybe vett szolg'!P:P,B11,'(52) igénybe vett szolg'!L:L) -> 0 | H11: =SUMIF('(53) egyéb szolgáltatások'!$P:$P,$B11,'(52) igénybe vett szolg'!$L:$L) -> 0 | I11: =SUMIF('(11) immat jav beszerz'!$S:$S,$B11,'(11) immat jav beszerz'!$O:$O) -> 0 | J11: =SUMIF('(13) műszaki berendezések'!$S:$S,$B11,'(13) műszaki berendezések'!$O:$O) -> 0 | K11: =SUMIF('(14) egyéb berendezések'!$S:$S,$B11,'(14) egyéb berendezések'!$O:$O) -> 0 | L11: =SUMIF('(16) beruházás,felújítás'!$S:$S,$B11,'(16) beruházás,felújítás'!$O:$O) -> 0 | M11: 0 | P11: 4 | Q11: D.M./Közbesz. | R11: 0 | S11: =SUMIF('(54-56) személyi+járulék'!$T:$T,Q11,'(54-56) személyi+járulék'!$O:$O) -> 0 | T11: =SUMIF('(54-56) személyi+járulék'!$T:$T,Q11,'(54-56) személyi+járulék'!$R:$R) -> 0 | U11: =SUMIF('(51) anyagköltség '!$P:$P,Q11,'(51) anyagköltség '!$M:$M) -> 0 | V11: =SUMIF('(52) igénybe vett szolg'!$P:$P,Q11,'(52) igénybe vett szolg'!$M:$M) -> 0 | W11: =SUMIF('(53) egyéb szolgáltatások'!$P:$P,$B11,'(52) igénybe vett szolg'!$M:$M) -> 0 | X11: =SUMIF('(11) immat jav beszerz'!$S:$S,$B11,'(11) immat jav beszerz'!$P:$P) -> 0 | Y11: =SUMIF('(13) műszaki berendezések'!$S:$S,$B11,'(13) műszaki berendezések'!$P:$P) -> 0 | Z11: =SUMIF('(14) egyéb berendezések'!$S:$S,$B11,'(14) egyéb berendezések'!$P:$P) -> 0 | AA11: =SUMIF('(16) beruházás,felújítás'!$S:$S,$B11,'(16) beruházás,felújítás'!$P:$P) -> 0 | AB11: 0 | AE11: 4 | AF11: D.M./Közbesz. | AG11: 0 | AH11: =SUMIF('(54-56) személyi+járulék'!AX:AX,AF11,'(54-56) személyi+járulék'!AR:AR) -> 0 | AI11: =SUMIF('(54-56) személyi+járulék'!$T:$T,AF11,'(54-56) személyi+járulék'!$Q:$Q) -> 0 | AJ11: =SUMIF('(51) anyagköltség '!AT:AT,AF11,'(51) anyagköltség '!AP:AP) -> 0 | AK11: =SUMIF('(52) igénybe vett szolg'!AT:AT,AF11,'(52) igénybe vett szolg'!AP:AP) -> 0 | AL11: =SUMIF('(53) egyéb szolgáltatások'!$P:$P,$B11,'(52) igénybe vett szolg'!$L:$L) -> 0 | AM11: =SUMIF('(11) immat jav beszerz'!$S:$S,$B11,'(11) immat jav beszerz'!$O:$O) -> 0 | AN11: =SUMIF('(13) műszaki berendezések'!$S:$S,$B11,'(13) műszaki berendezések'!$O:$O) -> 0 | AO11: =SUMIF('(14) egyéb berendezések'!$S:$S,$B11,'(14) egyéb berendezések'!$O:$O) -> 0 | AP11: =SUMIF('(16) beruházás,felújítás'!$S:$S,$B11,'(16) beruházás,felújítás'!$O:$O) -> 0 | AQ11: 0 | AS11: 4 | AT11: D.M./Közbesz. | AU11: 0 | AV11: 0 | AW11: 0 | AX11: 0 | AY11: 0 | AZ11: 0 | BA11: 0 | BB11: 0 | BC11: 0 | BD11: 0 | BE11: 0
A12: 5 | B12: D.M./Koord. | C12: 0 | D12: =SUMIF('(54-56) személyi+járulék'!T:T,B12,'(54-56) személyi+járulék'!N:N) -> 0 | E12: =SUMIF('(54-56) személyi+járulék'!$T:$T,B12,'(54-56) személyi+járulék'!$Q:$Q) -> 0 | F12: =SUMIF('(51) anyagköltség '!P:P,B12,'(51) anyagköltség '!L:L) -> 0 | G12: =SUMIF('(52) igénybe vett szolg'!P:P,B12,'(52) igénybe vett szolg'!L:L) -> 0 | H12: =SUMIF('(53) egyéb szolgáltatások'!$P:$P,$B12,'(52) igénybe vett szolg'!$L:$L) -> 0 | I12: =SUMIF('(11) immat jav beszerz'!$S:$S,$B12,'(11) immat jav beszerz'!$O:$O) -> 0 | J12: =SUMIF('(13) műszaki berendezések'!$S:$S,$B12,'(13) műszaki berendezések'!$O:$O) -> 0 | K12: =SUMIF('(14) egyéb berendezések'!$S:$S,$B12,'(14) egyéb berendezések'!$O:$O) -> 0 | L12: =SUMIF('(16) beruházás,felújítás'!$S:$S,$B12,'(16) beruházás,felújítás'!$O:$O) -> 0 | M12: 0 | P12: 5 | Q12: D.M./Koord. | R12: 0 | S12: =SUMIF('(54-56) személyi+járulék'!$T:$T,Q12,'(54-56) személyi+járulék'!$O:$O) -> 0 | T12: =SUMIF('(54-56) személyi+járulék'!$T:$T,Q12,'(54-56) személyi+járulék'!$R:$R) -> 0 | U12: =SUMIF('(51) anyagköltség '!$P:$P,Q12,'(51) anyagköltség '!$M:$M) -> 0 | V12: =SUMIF('(52) igénybe vett szolg'!$P:$P,Q12,'(52) igénybe vett szolg'!$M:$M) -> 0 | W12: =SUMIF('(53) egyéb szolgáltatások'!$P:$P,$B12,'(52) igénybe vett szolg'!$M:$M) -> 0 | X12: =SUMIF('(11) immat jav beszerz'!$S:$S,$B12,'(11) immat jav beszerz'!$P:$P) -> 0 | Y12: =SUMIF('(13) műszaki berendezések'!$S:$S,$B12,'(13) műszaki berendezések'!$P:$P) -> 0 | Z12: =SUMIF('(14) egyéb berendezések'!$S:$S,$B12,'(14) egyéb berendezések'!$P:$P) -> 0 | AA12: =SUMIF('(16) beruházás,felújítás'!$S:$S,$B12,'(16) beruházás,felújítás'!$P:$P) -> 0 | AB12: 0 | AE12: 5 | AF12: D.M./Koord. | AG12: 0 | AH12: =SUMIF('(54-56) személyi+járulék'!AX:AX,AF12,'(54-56) személyi+járulék'!AR:AR) -> 0 | AI12: =SUMIF('(54-56) személyi+járulék'!$T:$T,AF12,'(54-56) személyi+járulék'!$Q:$Q) -> 0 | AJ12: =SUMIF('(51) anyagköltség '!AT:AT,AF12,'(51) anyagköltség '!AP:AP) -> 0 | AK12: =SUMIF('(52) igénybe vett szolg'!AT:AT,AF12,'(52) igénybe vett szolg'!AP:AP) -> 0 | AL12: =SUMIF('(53) egyéb szolgáltatások'!$P:$P,$B12,'(52) igénybe vett szolg'!$L:$L) -> 0 | AM12: =SUMIF('(11) immat jav beszerz'!$S:$S,$B12,'(11) immat jav beszerz'!$O:$O) -> 0 | AN12: =SUMIF('(13) műszaki berendezések'!$S:$S,$B12,'(13) műszaki berendezések'!$O:$O) -> 0 | AO12: =SUMIF('(14) egyéb berendezések'!$S:$S,$B12,'(14) egyéb berendezések'!$O:$O) -> 0 | AP12: =SUMIF('(16) beruházás,felújítás'!$S:$S,$B12,'(16) beruházás,felújítás'!$O:$O) -> 0 | AQ12: 0 | AS12: 5 | AT12: D.M./Koord. | AU12: 0 | AV12: 0 | AW12: 0 | AX12: 0 | AY12: 0 | AZ12: 0 | BA12: 0 | BB12: 0 | BC12: 0 | BD12: 0 | BE12: 0
A13: 6 | B13: D.M./Tájék. | C13: 0 | D13: =SUMIF('(54-56) személyi+járulék'!T:T,B13,'(54-56) személyi+járulék'!N:N) -> 0 | E13: =SUMIF('(54-56) személyi+járulék'!$T:$T,B13,'(54-56) személyi+járulék'!$Q:$Q) -> 0 | F13: =SUMIF('(51) anyagköltség '!P:P,B13,'(51) anyagköltség '!L:L) -> 0 | G13: =SUMIF('(52) igénybe vett szolg'!P:P,B13,'(52) igénybe vett szolg'!L:L) -> 0 | H13: =SUMIF('(53) egyéb szolgáltatások'!$P:$P,$B13,'(52) igénybe vett szolg'!$L:$L) -> 0 | I13: =SUMIF('(11) immat jav beszerz'!$S:$S,$B13,'(11) immat jav beszerz'!$O:$O) -> 0 | J13: =SUMIF('(13) műszaki berendezések'!$S:$S,$B13,'(13) műszaki berendezések'!$O:$O) -> 0 | K13: =SUMIF('(14) egyéb berendezések'!$S:$S,$B13,'(14) egyéb berendezések'!$O:$O) -> 0 | L13: =SUMIF('(16) beruházás,felújítás'!$S:$S,$B13,'(16) beruházás,felújítás'!$O:$O) -> 0 | M13: 0 | P13: 6 | Q13: D.M./Tájék. | R13: 0 | S13: =SUMIF('(54-56) személyi+járulék'!$T:$T,Q13,'(54-56) személyi+járulék'!$O:$O) -> 0 | T13: =SUMIF('(54-56) személyi+járulék'!$T:$T,Q13,'(54-56) személyi+járulék'!$R:$R) -> 0 | U13: =SUMIF('(51) anyagköltség '!$P:$P,Q13,'(51) anyagköltség '!$M:$M) -> 0 | V13: =SUMIF('(52) igénybe vett szolg'!$P:$P,Q13,'(52) igénybe vett szolg'!$M:$M) -> 0 | W13: =SUMIF('(53) egyéb szolgáltatások'!$P:$P,$B13,'(52) igénybe vett szolg'!$M:$M) -> 0 | X13: =SUMIF('(11) immat jav beszerz'!$S:$S,$B13,'(11) immat jav beszerz'!$P:$P) -> 0 | Y13: =SUMIF('(13) műszaki berendezések'!$S:$S,$B13,'(13) műszaki berendezések'!$P:$P) -> 0 | Z13: =SUMIF('(14) egyéb berendezések'!$S:$S,$B13,'(14) egyéb berendezések'!$P:$P) -> 0 | AA13: =SUMIF('(16) beruházás,felújítás'!$S:$S,$B13,'(16) beruházás,felújítás'!$P:$P) -> 0 | AB13: 0 | AE13: 6 | AF13: D.M./Tájék. | AG13: 0 | AH13: =SUMIF('(54-56) személyi+járulék'!AX:AX,AF13,'(54-56) személyi+járulék'!AR:AR) -> 0 | AI13: =SUMIF('(54-56) személyi+járulék'!$T:$T,AF13,'(54-56) személyi+járulék'!$Q:$Q) -> 0 | AJ13: =SUMIF('(51) anyagköltség '!AT:AT,AF13,'(51) anyagköltség '!AP:AP) -> 0 | AK13: =SUMIF('(52) igénybe vett szolg'!AT:AT,AF13,'(52) igénybe vett szolg'!AP:AP) -> 0 | AL13: =SUMIF('(53) egyéb szolgáltatások'!$P:$P,$B13,'(52) igénybe vett szolg'!$L:$L) -> 0 | AM13: =SUMIF('(11) immat jav beszerz'!$S:$S,$B13,'(11) immat jav beszerz'!$O:$O) -> 0 | AN13: =SUMIF('(13) műszaki berendezések'!$S:$S,$B13,'(13) műszaki berendezések'!$O:$O) -> 0 | AO13: =SUMIF('(14) egyéb berendezések'!$S:$S,$B13,'(14) egyéb berendezések'!$O:$O) -> 0 | AP13: =SUMIF('(16) beruházás,felújítás'!$S:$S,$B13,'(16) beruházás,felújítás'!$O:$O) -> 0 | AQ13: 0 | AS13: 6 | AT13: D.M./Tájék. | AU13: 0 | AV13: 0 | AW13: 0 | AX13: 0 | AY13: 0 | AZ13: 0 | BA13: 0 | BB13: 0 | BC13: 0 | BD13: 0 | BE13: 0
A14: 7 | B14: D.M./Piac | C14: 0 | D14: =SUMIF('(54-56) személyi+járulék'!T:T,B14,'(54-56) személyi+járulék'!N:N) -> 0 | E14: =SUMIF('(54-56) személyi+járulék'!$T:$T,B14,'(54-56) személyi+járulék'!$Q:$Q) -> 0 | F14: =SUMIF('(51) anyagköltség '!P:P,B14,'(51) anyagköltség '!L:L) -> 0 | G14: =SUMIF('(52) igénybe vett szolg'!P:P,B14,'(52) igénybe vett szolg'!L:L) -> 0 | H14: =SUMIF('(53) egyéb szolgáltatások'!$P:$P,$B14,'(52) igénybe vett szolg'!$L:$L) -> 0 | I14: =SUMIF('(11) immat jav beszerz'!$S:$S,$B14,'(11) immat jav beszerz'!$O:$O) -> 0 | J14: =SUMIF('(13) műszaki berendezések'!$S:$S,$B14,'(13) műszaki berendezések'!$O:$O) -> 0 | K14: =SUMIF('(14) egyéb berendezések'!$S:$S,$B14,'(14) egyéb berendezések'!$O:$O) -> 0 | L14: =SUMIF('(16) beruházás,felújítás'!$S:$S,$B14,'(16) beruházás,felújítás'!$O:$O) -> 0 | M14: 0 | P14: 7 | Q14: D.M./Piac | R14: 0 | S14: =SUMIF('(54-56) személyi+járulék'!$T:$T,Q14,'(54-56) személyi+járulék'!$O:$O) -> 0 | T14: =SUMIF('(54-56) személyi+járulék'!$T:$T,Q14,'(54-56) személyi+járulék'!$R:$R) -> 0 | U14: =SUMIF('(51) anyagköltség '!$P:$P,Q14,'(51) anyagköltség '!$M:$M) -> 0 | V14: =SUMIF('(52) igénybe vett szolg'!$P:$P,Q14,'(52) igénybe vett szolg'!$M:$M) -> 0 | W14: =SUMIF('(53) egyéb szolgáltatások'!$P:$P,$B14,'(52) igénybe vett szolg'!$M:$M) -> 0 | X14: =SUMIF('(11) immat jav beszerz'!$S:$S,$B14,'(11) immat jav beszerz'!$P:$P) -> 0 | Y14: =SUMIF('(13) műszaki berendezések'!$S:$S,$B14,'(13) műszaki berendezések'!$P:$P) -> 0 | Z14: =SUMIF('(14) egyéb berendezések'!$S:$S,$B14,'(14) egyéb berendezések'!$P:$P) -> 0 | AA14: =SUMIF('(16) beruházás,felújítás'!$S:$S,$B14,'(16) beruházás,felújítás'!$P:$P) -> 0 | AB14: 0 | AE14: 7 | AF14: D.M./Piac | AG14: 0 | AH14: =SUMIF('(54-56) személyi+járulék'!AX:AX,AF14,'(54-56) személyi+járulék'!AR:AR) -> 0 | AI14: =SUMIF('(54-56) személyi+járulék'!$T:$T,AF14,'(54-56) személyi+járulék'!$Q:$Q) -> 0 | AJ14: =SUMIF('(51) anyagköltség '!AT:AT,AF14,'(51) anyagköltség '!AP:AP) -> 0 | AK14: =SUMIF('(52) igénybe vett szolg'!AT:AT,AF14,'(52) igénybe vett szolg'!AP:AP) -> 0 | AL14: =SUMIF('(53) egyéb szolgáltatások'!$P:$P,$B14,'(52) igénybe vett szolg'!$L:$L) -> 0 | AM14: =SUMIF('(11) immat jav beszerz'!$S:$S,$B14,'(11) immat jav beszerz'!$O:$O) -> 0 | AN14: =SUMIF('(13) műszaki berendezések'!$S:$S,$B14,'(13) műszaki berendezések'!$O:$O) -> 0 | AO14: =SUMIF('(14) egyéb berendezések'!$S:$S,$B14,'(14) egyéb berendezések'!$O:$O) -> 0 | AP14: =SUMIF('(16) beruházás,felújítás'!$S:$S,$B14,'(16) beruházás,felújítás'!$O:$O) -> 0 | AQ14: 0 | AS14: 7 | AT14: D.M./Piac | AU14: 0 | AV14: 0 | AW14: 0 | AX14: 0 | AY14: 0 | AZ14: 0 | BA14: 0 | BB14: 0 | BC14: 0 | BD14: 0 | BE14: 0
A15: 8 | B15: D.M./Iparjog | C15: 0 | D15: =SUMIF('(54-56) személyi+járulék'!T:T,B15,'(54-56) személyi+járulék'!N:N) -> 0 | E15: =SUMIF('(54-56) személyi+járulék'!$T:$T,B15,'(54-56) személyi+járulék'!$Q:$Q) -> 0 | F15: =SUMIF('(51) anyagköltség '!P:P,B15,'(51) anyagköltség '!L:L) -> 0 | G15: =SUMIF('(52) igénybe vett szolg'!P:P,B15,'(52) igénybe vett szolg'!L:L) -> 0 | H15: =SUMIF('(53) egyéb szolgáltatások'!$P:$P,$B15,'(52) igénybe vett szolg'!$L:$L) -> 0 | I15: =SUMIF('(11) immat jav beszerz'!$S:$S,$B15,'(11) immat jav beszerz'!$O:$O) -> 0 | J15: =SUMIF('(13) műszaki berendezések'!$S:$S,$B15,'(13) műszaki berendezések'!$O:$O) -> 0 | K15: =SUMIF('(14) egyéb berendezések'!$S:$S,$B15,'(14) egyéb berendezések'!$O:$O) -> 0 | L15: =SUMIF('(16) beruházás,felújítás'!$S:$S,$B15,'(16) beruházás,felújítás'!$O:$O) -> 0 | M15: 0 | P15: 8 | Q15: D.M./Iparjog | R15: 0 | S15: =SUMIF('(54-56) személyi+járulék'!$T:$T,Q15,'(54-56) személyi+járulék'!$O:$O) -> 0 | T15: =SUMIF('(54-56) személyi+járulék'!$T:$T,Q15,'(54-56) személyi+járulék'!$R:$R) -> 0 | U15: =SUMIF('(51) anyagköltség '!$P:$P,Q15,'(51) anyagköltség '!$M:$M) -> 0 | V15: =SUMIF('(52) igénybe vett szolg'!$P:$P,Q15,'(52) igénybe vett szolg'!$M:$M) -> 0 | W15: =SUMIF('(53) egyéb szolgáltatások'!$P:$P,$B15,'(52) igénybe vett szolg'!$M:$M) -> 0 | X15: =SUMIF('(11) immat jav beszerz'!$S:$S,$B15,'(11) immat jav beszerz'!$P:$P) -> 0 | Y15: =SUMIF('(13) műszaki berendezések'!$S:$S,$B15,'(13) műszaki berendezések'!$P:$P) -> 0 | Z15: =SUMIF('(14) egyéb berendezések'!$S:$S,$B15,'(14) egyéb berendezések'!$P:$P) -> 0 | AA15: =SUMIF('(16) beruházás,felújítás'!$S:$S,$B15,'(16) beruházás,felújítás'!$P:$P) -> 0 | AB15: 0 | AE15: 8 | AF15: D.M./Iparjog | AG15: 0 | AH15: =SUMIF('(54-56) személyi+járulék'!AX:AX,AF15,'(54-56) személyi+járulék'!AR:AR) -> 0 | AI15: =SUMIF('(54-56) személyi+járulék'!$T:$T,AF15,'(54-56) személyi+járulék'!$Q:$Q) -> 0 | AJ15: =SUMIF('(51) anyagköltség '!AT:AT,AF15,'(51) anyagköltség '!AP:AP) -> 0 | AK15: =SUMIF('(52) igénybe vett szolg'!AT:AT,AF15,'(52) igénybe vett szolg'!AP:AP) -> 0 | AL15: =SUMIF('(53) egyéb szolgáltatások'!$P:$P,$B15,'(52) igénybe vett szolg'!$L:$L) -> 0 | AM15: =SUMIF('(11) immat jav beszerz'!$S:$S,$B15,'(11) immat jav beszerz'!$O:$O) -> 0 | AN15: =SUMIF('(13) műszaki berendezések'!$S:$S,$B15,'(13) műszaki berendezések'!$O:$O) -> 0 | AO15: =SUMIF('(14) egyéb berendezések'!$S:$S,$B15,'(14) egyéb berendezések'!$O:$O) -> 0 | AP15: =SUMIF('(16) beruházás,felújítás'!$S:$S,$B15,'(16) beruházás,felújítás'!$O:$O) -> 0 | AQ15: 0 | AS15: 8 | AT15: D.M./Iparjog | AU15: 0 | AV15: 0 | AW15: 0 | AX15: 0 | AY15: 0 | AZ15: 0 | BA15: 0 | BB15: 0 | BC15: 0 | BD15: 0 | BE15: 0
A16: 9 | B16: D.M./Rezsi | C16: 0 | D16: =SUMIF('(54-56) személyi+járulék'!T:T,B16,'(54-56) személyi+járulék'!N:N) -> 0 | E16: =SUMIF('(54-56) személyi+járulék'!$T:$T,B16,'(54-56) személyi+járulék'!$Q:$Q) -> 0 | F16: =SUMIF('(51) anyagköltség '!P:P,B16,'(51) anyagköltség '!L:L) -> 0 | G16: =SUMIF('(52) igénybe vett szolg'!P:P,B16,'(52) igénybe vett szolg'!L:L) -> 1000000 | H16: =SUMIF('(53) egyéb szolgáltatások'!$P:$P,$B16,'(52) igénybe vett szolg'!$L:$L) -> 0 | I16: =SUMIF('(11) immat jav beszerz'!$S:$S,$B16,'(11) immat jav beszerz'!$O:$O) -> 0 | J16: =SUMIF('(13) műszaki berendezések'!$S:$S,$B16,'(13) műszaki berendezések'!$O:$O) -> 0 | K16: =SUMIF('(14) egyéb berendezések'!$S:$S,$B16,'(14) egyéb berendezések'!$O:$O) -> 0 | L16: =SUMIF('(16) beruházás,felújítás'!$S:$S,$B16,'(16) beruházás,felújítás'!$O:$O) -> 0 | M16: 1000000 | P16: 9 | Q16: D.M./Rezsi | R16: 0 | S16: =SUMIF('(54-56) személyi+járulék'!$T:$T,Q16,'(54-56) személyi+járulék'!$O:$O) -> 0 | T16: =SUMIF('(54-56) személyi+járulék'!$T:$T,Q16,'(54-56) személyi+járulék'!$R:$R) -> 0 | U16: =SUMIF('(51) anyagköltség '!$P:$P,Q16,'(51) anyagköltség '!$M:$M) -> 0 | V16: =SUMIF('(52) igénybe vett szolg'!$P:$P,Q16,'(52) igénybe vett szolg'!$M:$M) -> 0 | W16: =SUMIF('(53) egyéb szolgáltatások'!$P:$P,$B16,'(52) igénybe vett szolg'!$M:$M) -> 0 | X16: =SUMIF('(11) immat jav beszerz'!$S:$S,$B16,'(11) immat jav beszerz'!$P:$P) -> 0 | Y16: =SUMIF('(13) műszaki berendezések'!$S:$S,$B16,'(13) műszaki berendezések'!$P:$P) -> 0 | Z16: =SUMIF('(14) egyéb berendezések'!$S:$S,$B16,'(14) egyéb berendezések'!$P:$P) -> 0 | AA16: =SUMIF('(16) beruházás,felújítás'!$S:$S,$B16,'(16) beruházás,felújítás'!$P:$P) -> 0 | AB16: 0 | AE16: 9 | AF16: D.M./Rezsi | AG16: 0 | AH16: =SUMIF('(54-56) személyi+járulék'!AX:AX,AF16,'(54-56) személyi+járulék'!AR:AR) -> 0 | AI16: =SUMIF('(54-56) személyi+járulék'!$T:$T,AF16,'(54-56) személyi+járulék'!$Q:$Q) -> 0 | AJ16: =SUMIF('(51) anyagköltség '!AT:AT,AF16,'(51) anyagköltség '!AP:AP) -> 0 | AK16: =SUMIF('(52) igénybe vett szolg'!AT:AT,AF16,'(52) igénybe vett szolg'!AP:AP) -> 0 | AL16: =SUMIF('(53) egyéb szolgáltatások'!$P:$P,$B16,'(52) igénybe vett szolg'!$L:$L) -> 0 | AM16: =SUMIF('(11) immat jav beszerz'!$S:$S,$B16,'(11) immat jav beszerz'!$O:$O) -> 0 | AN16: =SUMIF('(13) műszaki berendezések'!$S:$S,$B16,'(13) műszaki berendezések'!$O:$O) -> 0 | AO16: =SUMIF('(14) egyéb berendezések'!$S:$S,$B16,'(14) egyéb berendezések'!$O:$O) -> 0 | AP16: =SUMIF('(16) beruházás,felújítás'!$S:$S,$B16,'(16) beruházás,felújítás'!$O:$O) -> 0 | AQ16: 0 | AS16: 9 | AT16: D.M./Rezsi | AU16: 0 | AV16: 0 | AW16: 0 | AX16: 0 | AY16: 1000000 | AZ16: 0 | BA16: 0 | BB16: 0 | BC16: 0 | BD16: 0 | BE16: 1000000
A17: 10 | B17: Kut.infra.- b.r. | C17: 0 | D17: =SUMIF('(54-56) személyi+járulék'!T:T,B17,'(54-56) személyi+járulék'!N:N) -> 0 | E17: =SUMIF('(54-56) személyi+járulék'!$T:$T,B17,'(54-56) személyi+járulék'!$Q:$Q) -> 0 | F17: =SUMIF('(51) anyagköltség '!P:P,B17,'(51) anyagköltség '!L:L) -> 0 | G17: =SUMIF('(52) igénybe vett szolg'!P:P,B17,'(52) igénybe vett szolg'!L:L) -> 0 | H17: =SUMIF('(53) egyéb szolgáltatások'!$P:$P,$B17,'(52) igénybe vett szolg'!$L:$L) -> 0 | I17: =SUMIF('(11) immat jav beszerz'!$S:$S,$B17,'(11) immat jav beszerz'!$O:$O) -> 0 | J17: =SUMIF('(13) műszaki berendezések'!$S:$S,$B17,'(13) műszaki berendezések'!$O:$O) -> 0 | K17: =SUMIF('(14) egyéb berendezések'!$S:$S,$B17,'(14) egyéb berendezések'!$O:$O) -> 0 | L17: =SUMIF('(16) beruházás,felújítás'!$S:$S,$B17,'(16) beruházás,felújítás'!$O:$O) -> 0 | M17: 0 | P17: 10 | Q17: Kut.infra.- b.r. | R17: 0 | S17: =SUMIF('(54-56) személyi+járulék'!$T:$T,Q17,'(54-56) személyi+járulék'!$O:$O) -> 0 | T17: =SUMIF('(54-56) személyi+járulék'!$T:$T,Q17,'(54-56) személyi+járulék'!$R:$R) -> 0 | U17: =SUMIF('(51) anyagköltség '!$P:$P,Q17,'(51) anyagköltség '!$M:$M) -> 0 | V17: =SUMIF('(52) igénybe vett szolg'!$P:$P,Q17,'(52) igénybe vett szolg'!$M:$M) -> 0 | W17: =SUMIF('(53) egyéb szolgáltatások'!$P:$P,$B17,'(52) igénybe vett szolg'!$M:$M) -> 0 | X17: =SUMIF('(11) immat jav beszerz'!$S:$S,$B17,'(11) immat jav beszerz'!$P:$P) -> 0 | Y17: =SUMIF('(13) műszaki berendezések'!$S:$S,$B17,'(13) műszaki berendezések'!$P:$P) -> 0 | Z17: =SUMIF('(14) egyéb berendezések'!$S:$S,$B17,'(14) egyéb berendezések'!$P:$P) -> 0 | AA17: =SUMIF('(16) beruházás,felújítás'!$S:$S,$B17,'(16) beruházás,felújítás'!$P:$P) -> 0 | AB17: 0 | AE17: 10 | AF17: Kut.infra.- b.r. | AG17: 0 | AH17: =SUMIF('(54-56) személyi+járulék'!AX:AX,AF17,'(54-56) személyi+járulék'!AR:AR) -> 0 | AI17: =SUMIF('(54-56) személyi+járulék'!$T:$T,AF17,'(54-56) személyi+járulék'!$Q:$Q) -> 0 | AJ17: =SUMIF('(51) anyagköltség '!AT:AT,AF17,'(51) anyagköltség '!AP:AP) -> 0 | AK17: =SUMIF('(52) igénybe vett szolg'!AT:AT,AF17,'(52) igénybe vett szolg'!AP:AP) -> 0 | AL17: =SUMIF('(53) egyéb szolgáltatások'!$P:$P,$B17,'(52) igénybe vett szolg'!$L:$L) -> 0 | AM17: =SUMIF('(11) immat jav beszerz'!$S:$S,$B17,'(11) immat jav beszerz'!$O:$O) -> 0 | AN17: =SUMIF('(13) műszaki berendezések'!$S:$S,$B17,'(13) műszaki berendezések'!$O:$O) -> 0 | AO17: =SUMIF('(14) egyéb berendezések'!$S:$S,$B17,'(14) egyéb berendezések'!$O:$O) -> 0 | AP17: =SUMIF('(16) beruházás,felújítás'!$S:$S,$B17,'(16) beruházás,felújítás'!$O:$O) -> 0 | AQ17: 0 | AS17: 10 | AT17: Kut.infra.- b.r. | AU17: 0 | AV17: 0 | AW17: 0 | AX17: 0 | AY17: 0 | AZ17: 0 | BA17: 0 | BB17: 0 | BC17: 0 | BD17: 0 | BE17: 0
A18: 11 | B18: Nem állami támogatás | C18: 0 | D18: =SUMIF('(54-56) személyi+járulék'!T:T,B18,'(54-56) személyi+járulék'!N:N) -> 0 | E18: =SUMIF('(54-56) személyi+járulék'!$T:$T,B18,'(54-56) személyi+járulék'!$Q:$Q) -> 0 | F18: =SUMIF('(51) anyagköltség '!P:P,B18,'(51) anyagköltség '!L:L) -> 0 | G18: =SUMIF('(52) igénybe vett szolg'!P:P,B18,'(52) igénybe vett szolg'!L:L) -> 0 | H18: =SUMIF('(53) egyéb szolgáltatások'!$P:$P,$B18,'(52) igénybe vett szolg'!$L:$L) -> 0 | I18: =SUMIF('(11) immat jav beszerz'!$S:$S,$B18,'(11) immat jav beszerz'!$O:$O) -> 0 | J18: =SUMIF('(13) műszaki berendezések'!$S:$S,$B18,'(13) műszaki berendezések'!$O:$O) -> 0 | K18: =SUMIF('(14) egyéb berendezések'!$S:$S,$B18,'(14) egyéb berendezések'!$O:$O) -> 0 | L18: =SUMIF('(16) beruházás,felújítás'!$S:$S,$B18,'(16) beruházás,felújítás'!$O:$O) -> 0 | M18: 0 | P18: 11 | Q18: Nem állami támogatás | R18: 0 | S18: =SUMIF('(54-56) személyi+járulék'!$T:$T,Q18,'(54-56) személyi+járulék'!$O:$O) -> 0 | T18: =SUMIF('(54-56) személyi+járulék'!$T:$T,Q18,'(54-56) személyi+járulék'!$R:$R) -> 0 | U18: =SUMIF('(51) anyagköltség '!$P:$P,Q18,'(51) anyagköltség '!$M:$M) -> 0 | V18: =SUMIF('(52) igénybe vett szolg'!$P:$P,Q18,'(52) igénybe vett szolg'!$M:$M) -> 0 | W18: =SUMIF('(53) egyéb szolgáltatások'!$P:$P,$B18,'(52) igénybe vett szolg'!$M:$M) -> 0 | X18: =SUMIF('(11) immat jav beszerz'!$S:$S,$B18,'(11) immat jav beszerz'!$P:$P) -> 0 | Y18: =SUMIF('(13) műszaki berendezések'!$S:$S,$B18,'(13) műszaki berendezések'!$P:$P) -> 0 | Z18: =SUMIF('(14) egyéb berendezések'!$S:$S,$B18,'(14) egyéb berendezések'!$P:$P) -> 0 | AA18: =SUMIF('(16) beruházás,felújítás'!$S:$S,$B18,'(16) beruházás,felújítás'!$P:$P) -> 0 | AB18: 0 | AE18: 11 | AF18: Nem állami támogatás | AG18: 0 | AH18: =SUMIF('(54-56) személyi+járulék'!AX:AX,AF18,'(54-56) személyi+járulék'!AR:AR) -> 0 | AI18: =SUMIF('(54-56) személyi+járulék'!$T:$T,AF18,'(54-56) személyi+járulék'!$Q:$Q) -> 0 | AJ18: =SUMIF('(51) anyagköltség '!AT:AT,AF18,'(51) anyagköltség '!AP:AP) -> 0 | AK18: =SUMIF('(52) igénybe vett szolg'!AT:AT,AF18,'(52) igénybe vett szolg'!AP:AP) -> 0 | AL18: =SUMIF('(53) egyéb szolgáltatások'!$P:$P,$B18,'(52) igénybe vett szolg'!$L:$L) -> 0 | AM18: =SUMIF('(11) immat jav beszerz'!$S:$S,$B18,'(11) immat jav beszerz'!$O:$O) -> 0 | AN18: =SUMIF('(13) műszaki berendezések'!$S:$S,$B18,'(13) műszaki berendezések'!$O:$O) -> 0 | AO18: =SUMIF('(14) egyéb berendezések'!$S:$S,$B18,'(14) egyéb berendezések'!$O:$O) -> 0 | AP18: =SUMIF('(16) beruházás,felújítás'!$S:$S,$B18,'(16) beruházás,felújítás'!$O:$O) -> 0 | AQ18: 0 | AS18: 11 | AT18: Nem állami támogatás | AU18: 0 | AV18: 0 | AW18: 0 | AX18: 0 | AY18: 0 | AZ18: 0 | BA18: 0 | BB18: 0 | BC18: 0 | BD18: 0 | BE18: 0
A20: elszámolt költségek összegzése: | D20: =SUM(D8:D18) -> 20310000 | E20: =SUM(E8:E18) -> 3937050 | F20: 458598 | G20: 1635000 | H20: 0 | I20: 223799 | J20: 37894 | K20: 0 | L20: =SUM(L8:L18) -> 0 | M20: =SUM(M8:M18) -> 26602341 | P20: elszámolt költségek összegzése: | S20: =SUM(S8:S18) -> 1502000 | T20: =SUM(T8:T18) -> 288600 | U20: 0 | V20: 0 | W20: 0 | X20: 176220 | Y20: 29837 | Z20: 0 | AA20: =SUM(AA8:AA18) -> 0 | AB20: =SUM(AB8:AB18) -> 1996657 | AE20: elszámolt költségek összegzése: | AH20: =SUM(AH8:AH18) -> 0 | AI20: =SUM(AI8:AI18) -> 1154400 | AJ20: 0 | AK20: 0 | AL20: 0 | AM20: 223799 | AN20: 3222 | AO20: 0 | AP20: =SUM(AP8:AP18) -> 0 | AQ20: =SUM(AQ8:AQ18) -> 1381421 | AS20: elszámolt költségek összegzése: | AV20: =SUM(AV8:AV18) -> 21812000 | AW20: =SUM(AW8:AW18) -> 5380050 | AX20: 458598 | AY20: 1635000 | AZ20: 0 | BA20: 623818 | BB20: 70953 | BC20: 0 | BD20: 0 | BE20: =SUM(BE8:BE19) -> 29980419
A21: költségösszegzés a számlaösszesítők alapján: | D21: ='(54-56) személyi+járulék'!N45 -> 14358000 | E21: ='(54-56) személyi+járulék'!Q45 -> 2782650 | F21: =+'(51) anyagköltség '!L26 -> 458598 | G21: =+'(52) igénybe vett szolg'!L28 -> 1635000 | H21: =+'(53) egyéb szolgáltatások'!L25 -> 0 | I21: ='(11) immat jav beszerz'!O27 -> 223799 | J21: ='(13) műszaki berendezések'!O26 -> 37894 | K21: =+'(14) egyéb berendezések'!O27 -> 0 | L21: ='(16) beruházás,felújítás'!O27 -> 0 | M21: =SUM(D21:L21) -> 19495941 | P21: költségösszegzés a számlaösszesítők alapján: | S21: =+'(54-56) személyi+járulék'!O45 -> 1502000 | T21: =+'(54-56) személyi+járulék'!R45 -> 288600 | U21: =+'(51) anyagköltség '!M26 -> 0 | V21: =+'(52) igénybe vett szolg'!M28 -> 0 | W21: =+'(53) egyéb szolgáltatások'!M25 -> 0 | X21: =+'(11) immat jav beszerz'!P27 -> 176220 | Y21: =+'(13) műszaki berendezések'!P26 -> 29837 | Z21: =+'(14) egyéb berendezések'!P27 -> 0 | AA21: =+'(16) beruházás,felújítás'!P27 -> 0 | AB21: =SUM(S21:AA21) -> 1996657 | AE21: költségösszegzés a számlaösszesítők alapján: | AH21: =+'(54-56) személyi+járulék'!P45 -> 0 | AI21: =+'(54-56) személyi+járulék'!S45 -> 0 | AJ21: =+'(51) anyagköltség '!N26 -> 0 | AK21: =+'(52) igénybe vett szolg'!N28 -> 0 | AL21: =+'(53) egyéb szolgáltatások'!N25 -> 0 | AM21: =+'(11) immat jav beszerz'!Q27 -> 47579 | AN21: =+'(13) műszaki berendezések'!Q26 -> 3222 | AO21: =+'(14) egyéb berendezések'!Q27 -> 0 | AP21: =+'(16) beruházás,felújítás'!Q27 -> 0 | AQ21: =SUM(AH21:AP21) -> 50801 | AS21: költségösszegzés a számlaösszesítők alapján: | AV21: =+'(54-56) személyi+járulék'!N45+'(54-56) személyi+járulék'!O45+'(54-56) személyi+járulék'!P45 -> 15860000 | AW21: =+'(54-56) személyi+járulék'!Q45+'(54-56) személyi+járulék'!R45+'(54-56) személyi+járulék'!S45 -> 3071250 | AX21: =+'(51) anyagköltség '!O26 -> 458598 | AY21: =+'(52) igénybe vett szolg'!O28 -> 1635000 | AZ21: =+'(53) egyéb szolgáltatások'!O25 -> 0 | BA21: =+'(11) immat jav beszerz'!R27 -> 447598 | BB21: =+'(13) műszaki berendezések'!R26 -> 70953 | BC21: =+'(14) egyéb berendezések'!R27 -> 0 | BD21: =+'(16) beruházás,felújítás'!R27 -> 0 | BE21: =SUM(AV21:BD21) -> 21543399

Sheet (LNY) lemondó nyilatkozat
A2: Egy példányban kitöltve, eredeti aláírással és bélyegzéssel ellátva kell benyújtani.
A7: Lemondó Nyilatkozat
A11: Kedvezményezett neve | B11: =+'(54-56) személyi+járulék'!G1 -> MINTA Kft.
A12: Szerződésszám | B12: =+'(54-56) személyi+járulék'!G2 -> 2017-1.2.1-NKP-0000-00000
A13: Mérföldkő dátuma: | B13: =+'(54-56) személyi+járulék'!G3 -> 2017.11.01.-2018.10.31.
A16: Alulírott <név>, mint a <kedvezményezett megnevezése> társaság/szervezet cégjegyzésre jogosult vezetője nyilatkozom, hogy a fenti azonosító számú projekt megvalósításához a megítélt támogatásból összesen <a ténylegesen elszámolt támogatás összege> Ft került felhasználásra. A fennmaradó <a megítélt és a tényleges támogatás különbsége> Ft támogatást a továbbiakban nem kívánom igénybe venni, így arról lemondok.
A19: Hely, dátum
B23: ………………………………
B24: Kedvezményezett cégszerű *
B25: aláírása
B26: Ph.
A31: * Az aláírók nevét nyomtatott betűkkel is kérjük kitölteni

Sheet támogatás típusai (hidden)
A2: támogatás típus rövídítése | B2: támogatás típusa
A4: K+F/Alap. | B4: Alapkutatás | C4: Kutatás-fejlesztési projekthez nyújtott támogatás
A5: K+F/Alkalm. | B5: Alkalmazott (ipari) kutatás
A6: K+F/Kis.fejl. | B6: Kísérleti fejlesztés
A7: D.M./Közbesz. | B7: Közbeszerzés | C7: De minimis támogatás
A8: D.M./Koord. | B8: Koordinációs költség
A9: D.M./Tájék. | B9: Tájékoztatási költség
A10: D.M./Piac | B10: Piacra jutáshoz kapcsolódó költségek
A11: D.M./Iparjog | B11: Iparjogvédelemmel kapcsolatos költségek
A12: D.M./Rezsi | B12: Általános (rezsi) költségek
A13: Kut.infra.- b.r. | B13: Kutatási infrastruktúrához nyújtott beruházási támogatás | C13: Kutatási infrastruktúrához nyújtott beruházási támogatás
A14: Nem állami támogatás | B14: Nem állami támogatás

Sheet Támogatás típusa
A2: támogatás típus rövídítése | B2: támogatás típusa
A4: K+F/Alap. | B4: Alapkutatás | C4: Kutatás-fejlesztési projekthez nyújtott támogatás
A5: K+F/Alkalm. | B5: Alkalmazott (ipari) kutatás
A6: K+F/Kis.fejl. | B6: Kísérleti fejlesztés
A7: D.M./Közbesz. | B7: Közbeszerzés | C7: De minimis támogatás
A8: D.M./Koord. | B8: Koordinációs költség
A9: D.M./Tájék. | B9: Tájékoztatási költség
A10: D.M./Piac | B10: Piacra jutáshoz kapcsolódó költségek
A11: D.M./Iparjog | B11: Iparjogvédelemmel kapcsolatos költségek
A12: D.M./Rezsi | B12: Általános (rezsi) költségek
A13: Kut.infra.- b.r. | B13: Kutatási infrastruktúrához nyújtott beruházási támogatás | C13: Kutatási infrastruktúrához nyújtott beruházási támogatás
A14: Nem állami támogatás | B14: Nem állami támogatás | C14: Nem állami támogatás

Sheet Munka1
